Workbook

Sheet Menu
C5: Lean Six Sigma Call Center
A8: 1) DMAIC
A13: 2) Please select the Call Center, Shift and Sales Supervisor to customerize your report and enhance the Control
A15: Call Center | D15: 1
A17: Shift | D17: 4
A19: Supervisor | D19: 1

Sheet Type (hidden)
A1: Shiifts | C1: Cert | D1: Call Center | F1: Instructors
A2: Shift 1 | C2: G | D2: Greenville | E2: 1 | F2: Ken Barton
A3: Shift 2 | C3: B | D3: Birmingham | E3: =E2+1 -> 2 | F3: Sam Nancy
A4: Shift 3 | E4: =E3+1 -> 3 | F4: A Smith
A5: Shift 4 | E5: =E4+1 -> 4 | F5: Steve Wynn
A6: Shift 5
A14: Shiifts
A15: Shift 1
A16: Shift 2
A17: Shift 3
A18: Shift 4
A19: Shift 5
A20: Shift 6

Sheet Define
A1: Define
A2: - the Business Case
A13: Define
A14: - the Process

Sheet Analyze
A1: Analyze
A2: - the roots causes
A3: of poor performance
A18: Analyze
A19: - Quality Function
A20: Deployment

Sheet Improve
A1: Improve
A2: - the Process

Sheet Graph
D5: Lean Six Sigma Call Center - Measure
A8: Call Center | C8: =IF(Graph!D9=1,Type!D2,IF(AND(Graph!D9=2),Type!D3,IF(AND(Graph!D9=3),Type!D4,IF(AND(Graph!D9=4),Type!D5,IF(AND(Graph!D9=5),Type!D6,IF(AND(Graph!D9=6),Type!D7,"NA")))))) -> Birmingham
D9: 2
B30: Total Call Volume '000
A31: Year 2008 | B31: Jan | C31: Feb | D31: Mar | E31: Apr | F31: May | G31: Jun | H31: Jul | I31: Aug | J31: Sep | K31: Oct | L31: Nov | M31: Dec | N31: YTD
A32: Shift 1 | C32: ='Raw Data - Graph'!E9 -> 490 | D32: ='Raw Data - Graph'!F9 -> 416 | E32: ='Raw Data - Graph'!G9 -> 534 | F32: ='Raw Data - Graph'!H9 -> 500 | N32: =SUM(B32:M32) -> 1940
A33: Shift 2 | C33: ='Raw Data - Graph'!E11 -> 663 | D33: ='Raw Data - Graph'!F11 -> 688 | E33: ='Raw Data - Graph'!G11 -> 567 | F33: ='Raw Data - Graph'!H11 -> 608 | N33: 2526
A34: Shift 3 | C34: ='Raw Data - Graph'!E13 -> 441 | D34: ='Raw Data - Graph'!F13 -> 504 | E34: ='Raw Data - Graph'!G13 -> 421 | F34: ='Raw Data - Graph'!H13 -> 451 | N34: 1817
A35: Shift 4 | C35: ='Raw Data - Graph'!E15 -> 542 | D35: ='Raw Data - Graph'!F15 -> 613 | E35: ='Raw Data - Graph'!G15 -> 560 | F35: ='Raw Data - Graph'!H15 -> 554 | N35: 2269
A36: Shift 5 | C36: ='Raw Data - Graph'!E17 -> 267 | D36: ='Raw Data - Graph'!F17 -> 328 | E36: ='Raw Data - Graph'!G17 -> 355 | F36: ='Raw Data - Graph'!H17 -> 347 | N36: 1297
A37: Total | C37: ='Raw Data - Graph'!E5/1000 -> 2403 | D37: ='Raw Data - Graph'!F5/1000 -> 2550 | E37: ='Raw Data - Graph'!G5/1000 -> 2437 | F37: ='Raw Data - Graph'!H5/1000 -> 2460 | N37: 9850
B39: % of Calls Dropped
A40: Year 2008 | B40: Jan | C40: Feb | D40: Mar | E40: Apr | F40: May | G40: Jun | H40: Jul | I40: Aug | J40: Sep | K40: Oct | L40: Nov | M40: Dec | N40: YTD
A41: Shift 1 | C41: ='Raw Data - Graph'!E9/'Raw Data - Graph'!E$43 -> 0.2 | D41: ='Raw Data - Graph'!F9/'Raw Data - Graph'!F$43 -> 0.16 | E41: ='Raw Data - Graph'!G9/'Raw Data - Graph'!G$43 -> 0.22 | F41: ='Raw Data - Graph'!H9/'Raw Data - Graph'!H$43 -> 0.2 | N41: ='Raw Data - Graph'!P9/'Raw Data - Graph'!P$43 -> 0.2
A42: Shift 2 | C42: ='Raw Data - Graph'!E11/'Raw Data - Graph'!E$43 -> 0.28 | D42: ='Raw Data - Graph'!F11/'Raw Data - Graph'!F$43 -> 0.27 | E42: ='Raw Data - Graph'!G11/'Raw Data - Graph'!G$43 -> 0.23 | F42: ='Raw Data - Graph'!H11/'Raw Data - Graph'!H$43 -> 0.25 | N42: ='Raw Data - Graph'!P11/'Raw Data - Graph'!P$43 -> 0.26
A43: Shift 3 | C43: ='Raw Data - Graph'!E13/'Raw Data - Graph'!E$43 -> 0.18 | D43: ='Raw Data - Graph'!F13/'Raw Data - Graph'!F$43 -> 0.2 | E43: ='Raw Data - Graph'!G13/'Raw Data - Graph'!G$43 -> 0.17 | F43: ='Raw Data - Graph'!H13/'Raw Data - Graph'!H$43 -> 0.18 | N43: ='Raw Data - Graph'!P13/'Raw Data - Graph'!P$43 -> 0.18
A44: Shift 4 | C44: ='Raw Data - Graph'!E15/'Raw Data - Graph'!E$43 -> 0.23 | D44: ='Raw Data - Graph'!F15/'Raw Data - Graph'!F$43 -> 0.24 | E44: ='Raw Data - Graph'!G15/'Raw Data - Graph'!G$43 -> 0.23 | F44: ='Raw Data - Graph'!H15/'Raw Data - Graph'!H$43 -> 0.23 | N44: ='Raw Data - Graph'!P15/'Raw Data - Graph'!P$43 -> 0.23
A45: Shift 5 | C45: ='Raw Data - Graph'!E17/'Raw Data - Graph'!E$43 -> 0.11 | D45: ='Raw Data - Graph'!F17/'Raw Data - Graph'!F$43 -> 0.13 | E45: ='Raw Data - Graph'!G17/'Raw Data - Graph'!G$43 -> 0.15 | F45: ='Raw Data - Graph'!H17/'Raw Data - Graph'!H$43 -> 0.14 | N45: ='Raw Data - Graph'!P17/'Raw Data - Graph'!P$43 -> 0.13
A46: Total | C46: =('Raw Data - Graph'!E5/1000)/'Raw Data - Graph'!E$43 -> 1 | D46: =('Raw Data - Graph'!F5/1000)/'Raw Data - Graph'!F$43 -> 1 | E46: =('Raw Data - Graph'!G5/1000)/'Raw Data - Graph'!G$43 -> 1 | F46: =('Raw Data - Graph'!H5/1000)/'Raw Data - Graph'!H$43 -> 1 | N46: =('Raw Data - Graph'!P5/1000)/'Raw Data - Graph'!P$43 -> 1
A48: Source: Call Volume Database
A52: ="Top 30 "&'Raw Data - Graph'!B5&" Customers - Call Volume '000" -> Top 30 Birmingham Customers - Call Volume '000 | F52: Jan | G52: Feb | H52: Mar | I52: Apr | J52: May | K52: Total
A53: 1 | B53: =DGET(TopCustomers,'Top 30'!$C$1,A129:B130) -> MEDCO HEALTH SOLUTIONS, INC. | G53: =DGET(TopCustomers,'Top 30'!$D$1,A129:B130)/1000 -> 14 | H53: =DGET(TopCustomers,'Top 30'!$E$1,A129:B130)/1000 -> 21 | I53: =DGET(TopCustomers,'Top 30'!$F$1,A129:B130)/1000 -> 19 | J53: =DGET(TopCustomers,'Top 30'!$G$1,A129:B130)/1000 -> 26 | K53: =DGET(TopCustomers,'Top 30'!$H$1,A129:B130)/1000 -> 80
A54: =A53+1 -> 2 | B54: =DGET(TopCustomers,'Top 30'!$C$1,A131:B132) -> Merrill Lynch | G54: =DGET(TopCustomers,'Top 30'!$D$1,A131:B132)/1000 -> 15 | H54: =DGET(TopCustomers,'Top 30'!$E$1,A131:B132)/1000 -> 17 | I54: =DGET(TopCustomers,'Top 30'!$F$1,A131:B132)/1000 -> 16 | J54: =DGET(TopCustomers,'Top 30'!$G$1,A131:B132)/1000 -> 17 | K54: =DGET(TopCustomers,'Top 30'!$H$1,A131:B132)/1000 -> 65
A55: =A54+1 -> 3 | B55: =DGET(TopCustomers,'Top 30'!$C$1,A133:B134) -> United Parcel Service | G55: =DGET(TopCustomers,'Top 30'!$D$1,A133:B134)/1000 -> 10 | H55: =DGET(TopCustomers,'Top 30'!$E$1,A133:B134)/1000 -> 12 | I55: =DGET(TopCustomers,'Top 30'!$F$1,A133:B134)/1000 -> 10 | J55: =DGET(TopCustomers,'Top 30'!$G$1,A133:B134)/1000 -> 11 | K55: =DGET(TopCustomers,'Top 30'!$H$1,A133:B134)/1000 -> 44
A56: 4 | B56: =DGET(TopCustomers,'Top 30'!$C$1,A135:B136) -> Citizens Bank | G56: =DGET(TopCustomers,'Top 30'!$D$1,A135:B136)/1000 -> 10 | H56: =DGET(TopCustomers,'Top 30'!$E$1,A135:B136)/1000 -> 11 | I56: =DGET(TopCustomers,'Top 30'!$F$1,A135:B136)/1000 -> 10 | J56: =DGET(TopCustomers,'Top 30'!$G$1,A135:B136)/1000 -> 11 | K56: =DGET(TopCustomers,'Top 30'!$H$1,A135:B136)/1000 -> 41
A57: 5 | B57: =DGET(TopCustomers,'Top 30'!$C$1,A137:B138) -> Goldman Sachs Executive Clearing,LP | G57: =DGET(TopCustomers,'Top 30'!$D$1,A137:B138)/1000 -> 10 | H57: =DGET(TopCustomers,'Top 30'!$E$1,A137:B138)/1000 -> 9 | I57: =DGET(TopCustomers,'Top 30'!$F$1,A137:B138)/1000 -> 8 | J57: =DGET(TopCustomers,'Top 30'!$G$1,A137:B138)/1000 -> 9 | K57: =DGET(TopCustomers,'Top 30'!$H$1,A137:B138)/1000 -> 37
A58: 6 | B58: =DGET(TopCustomers,'Top 30'!$C$1,A139:B140) -> Fedex Ground | G58: =DGET(TopCustomers,'Top 30'!$D$1,A139:B140)/1000 -> 9 | H58: =DGET(TopCustomers,'Top 30'!$E$1,A139:B140)/1000 -> 10 | I58: =DGET(TopCustomers,'Top 30'!$F$1,A139:B140)/1000 -> 8 | J58: =DGET(TopCustomers,'Top 30'!$G$1,A139:B140)/1000 -> 6 | K58: =DGET(TopCustomers,'Top 30'!$H$1,A139:B140)/1000 -> 32
A59: 7 | B59: =DGET(TopCustomers,'Top 30'!$C$1,A141:B142) -> US Bank | G59: =DGET(TopCustomers,'Top 30'!$D$1,A141:B142)/1000 -> 7 | H59: =DGET(TopCustomers,'Top 30'!$E$1,A141:B142)/1000 -> 9 | I59: =DGET(TopCustomers,'Top 30'!$F$1,A141:B142)/1000 -> 7 | J59: =DGET(TopCustomers,'Top 30'!$G$1,A141:B142)/1000 -> 7 | K59: =DGET(TopCustomers,'Top 30'!$H$1,A141:B142)/1000 -> 30
A60: 8 | B60: =DGET(TopCustomers,'Top 30'!$C$1,A143:B144) -> Bank One | G60: =DGET(TopCustomers,'Top 30'!$D$1,A143:B144)/1000 -> 7 | H60: =DGET(TopCustomers,'Top 30'!$E$1,A143:B144)/1000 -> 8 | I60: =DGET(TopCustomers,'Top 30'!$F$1,A143:B144)/1000 -> 7 | J60: =DGET(TopCustomers,'Top 30'!$G$1,A143:B144)/1000 -> 8 | K60: =DGET(TopCustomers,'Top 30'!$H$1,A143:B144)/1000 -> 29
A61: 9 | B61: =DGET(TopCustomers,'Top 30'!$C$1,A145:B146) -> UBS Investment Bank | G61: =DGET(TopCustomers,'Top 30'!$D$1,A145:B146)/1000 -> 5 | H61: =DGET(TopCustomers,'Top 30'!$E$1,A145:B146)/1000 -> 6 | I61: =DGET(TopCustomers,'Top 30'!$F$1,A145:B146)/1000 -> 5 | J61: =DGET(TopCustomers,'Top 30'!$G$1,A145:B146)/1000 -> 5 | K61: =DGET(TopCustomers,'Top 30'!$H$1,A145:B146)/1000 -> 23
A62: 10 | B62: =DGET(TopCustomers,'Top 30'!$C$1,A147:B148) -> State Street Corporation | G62: =DGET(TopCustomers,'Top 30'!$D$1,A147:B148)/1000 -> 5 | H62: =DGET(TopCustomers,'Top 30'!$E$1,A147:B148)/1000 -> 6 | I62: =DGET(TopCustomers,'Top 30'!$F$1,A147:B148)/1000 -> 5 | J62: =DGET(TopCustomers,'Top 30'!$G$1,A147:B148)/1000 -> 7 | K62: =DGET(TopCustomers,'Top 30'!$H$1,A147:B148)/1000 -> 23
A63: 11 | B63: =DGET(TopCustomers,'Top 30'!$C$1,A149:B150) -> Deutsche Bank | G63: =DGET(TopCustomers,'Top 30'!$D$1,A149:B150)/1000 -> 6 | H63: =DGET(TopCustomers,'Top 30'!$E$1,A149:B150)/1000 -> 7 | I63: =DGET(TopCustomers,'Top 30'!$F$1,A149:B150)/1000 -> 5 | J63: =DGET(TopCustomers,'Top 30'!$G$1,A149:B150)/1000 -> 5 | K63: =DGET(TopCustomers,'Top 30'!$H$1,A149:B150)/1000 -> 22
A64: 12 | B64: =DGET(TopCustomers,'Top 30'!$C$1,A151:B152) -> CH Robinson Inc | G64: =DGET(TopCustomers,'Top 30'!$D$1,A151:B152)/1000 -> 5 | H64: =DGET(TopCustomers,'Top 30'!$E$1,A151:B152)/1000 -> 6 | I64: =DGET(TopCustomers,'Top 30'!$F$1,A151:B152)/1000 -> 5 | J64: =DGET(TopCustomers,'Top 30'!$G$1,A151:B152)/1000 -> 6 | K64: =DGET(TopCustomers,'Top 30'!$H$1,A151:B152)/1000 -> 22
A65: 13 | B65: =DGET(TopCustomers,'Top 30'!$C$1,A153:B154) -> Aegis Mortgage Corporation | G65: =DGET(TopCustomers,'Top 30'!$D$1,A153:B154)/1000 -> 6 | H65: =DGET(TopCustomers,'Top 30'!$E$1,A153:B154)/1000 -> 5 | I65: =DGET(TopCustomers,'Top 30'!$F$1,A153:B154)/1000 -> 5 | J65: =DGET(TopCustomers,'Top 30'!$G$1,A153:B154)/1000 -> 5 | K65: =DGET(TopCustomers,'Top 30'!$H$1,A153:B154)/1000 -> 22
A66: 14 | B66: =DGET(TopCustomers,'Top 30'!$C$1,A155:B156) -> Goldman Sachs Execution & Clearing,LP. | G66: =DGET(TopCustomers,'Top 30'!$D$1,A155:B156)/1000 -> 5 | H66: =DGET(TopCustomers,'Top 30'!$E$1,A155:B156)/1000 -> 6 | I66: =DGET(TopCustomers,'Top 30'!$F$1,A155:B156)/1000 -> 5 | J66: =DGET(TopCustomers,'Top 30'!$G$1,A155:B156)/1000 -> 5 | K66: =DGET(TopCustomers,'Top 30'!$H$1,A155:B156)/1000 -> 21
A67: 15 | B67: =DGET(TopCustomers,'Top 30'!$C$1,A157:B158) -> JP Morgan Investor Services | G67: =DGET(TopCustomers,'Top 30'!$D$1,A157:B158)/1000 -> 5 | H67: =DGET(TopCustomers,'Top 30'!$E$1,A157:B158)/1000 -> 6 | I67: =DGET(TopCustomers,'Top 30'!$F$1,A157:B158)/1000 -> 3 | J67: =DGET(TopCustomers,'Top 30'!$G$1,A157:B158)/1000 -> 4 | K67: =DGET(TopCustomers,'Top 30'!$H$1,A157:B158)/1000 -> 18
A68: 16 | B68: =DGET(TopCustomers,'Top 30'!$C$1,A159:B160) -> thebluebook.com | G68: =DGET(TopCustomers,'Top 30'!$D$1,A159:B160)/1000 -> 37 | H68: =DGET(TopCustomers,'Top 30'!$E$1,A159:B160)/1000 -> 52 | I68: =DGET(TopCustomers,'Top 30'!$F$1,A159:B160)/1000 -> 48 | J68: =DGET(TopCustomers,'Top 30'!$G$1,A159:B160)/1000 -> 42 | K68: =DGET(TopCustomers,'Top 30'!$H$1,A159:B160)/1000 -> 179
A69: =A68+1 -> 17 | B69: =DGET(TopCustomers,'Top 30'!$C$1,A161:B162) -> Wells Fargo Bank | G69: =DGET(TopCustomers,'Top 30'!$D$1,A161:B162)/1000 -> 4 | H69: =DGET(TopCustomers,'Top 30'!$E$1,A161:B162)/1000 -> 5 | I69: =DGET(TopCustomers,'Top 30'!$F$1,A161:B162)/1000 -> 4 | J69: =DGET(TopCustomers,'Top 30'!$G$1,A161:B162)/1000 -> 5 | K69: =DGET(TopCustomers,'Top 30'!$H$1,A161:B162)/1000 -> 18
A70: 18 | B70: =DGET(TopCustomers,'Top 30'!$C$1,A163:B164) -> LABCORP - TELECOM | G70: =DGET(TopCustomers,'Top 30'!$D$1,A163:B164)/1000 -> 4 | H70: =DGET(TopCustomers,'Top 30'!$E$1,A163:B164)/1000 -> 5 | I70: =DGET(TopCustomers,'Top 30'!$F$1,A163:B164)/1000 -> 4 | J70: =DGET(TopCustomers,'Top 30'!$G$1,A163:B164)/1000 -> 4 | K70: =DGET(TopCustomers,'Top 30'!$H$1,A163:B164)/1000 -> 17
A71: 19 | B71: =DGET(TopCustomers,'Top 30'!$C$1,A165:B166) -> Morgan Stanley | G71: =DGET(TopCustomers,'Top 30'!$D$1,A165:B166)/1000 -> 3 | H71: =DGET(TopCustomers,'Top 30'!$E$1,A165:B166)/1000 -> 4 | I71: =DGET(TopCustomers,'Top 30'!$F$1,A165:B166)/1000 -> 3 | J71: =DGET(TopCustomers,'Top 30'!$G$1,A165:B166)/1000 -> 5 | K71: =DGET(TopCustomers,'Top 30'!$H$1,A165:B166)/1000 -> 16
A72: 20 | B72: =DGET(TopCustomers,'Top 30'!$C$1,A167:B168) -> Yellow Roadway Technologies | G72: =DGET(TopCustomers,'Top 30'!$D$1,A167:B168)/1000 -> 4 | H72: =DGET(TopCustomers,'Top 30'!$E$1,A167:B168)/1000 -> 4 | I72: =DGET(TopCustomers,'Top 30'!$F$1,A167:B168)/1000 -> 4 | J72: =DGET(TopCustomers,'Top 30'!$G$1,A167:B168)/1000 -> 4 | K72: =DGET(TopCustomers,'Top 30'!$H$1,A167:B168)/1000 -> 15
A73: 21 | B73: =DGET(TopCustomers,'Top 30'!$C$1,A169:B170) -> American Mortgage Network | G73: =DGET(TopCustomers,'Top 30'!$D$1,A169:B170)/1000 -> 33 | H73: =DGET(TopCustomers,'Top 30'!$E$1,A169:B170)/1000 -> 36 | I73: =DGET(TopCustomers,'Top 30'!$F$1,A169:B170)/1000 -> 30 | J73: =DGET(TopCustomers,'Top 30'!$G$1,A169:B170)/1000 -> 35 | K73: =DGET(TopCustomers,'Top 30'!$H$1,A169:B170)/1000 -> 134
A74: 22 | B74: =DGET(TopCustomers,'Top 30'!$C$1,A171:B172) -> PNC Bank | G74: =DGET(TopCustomers,'Top 30'!$D$1,A171:B172)/1000 -> 4 | H74: =DGET(TopCustomers,'Top 30'!$E$1,A171:B172)/1000 -> 3 | I74: =DGET(TopCustomers,'Top 30'!$F$1,A171:B172)/1000 -> 3 | J74: =DGET(TopCustomers,'Top 30'!$G$1,A171:B172)/1000 -> 3 | K74: =DGET(TopCustomers,'Top 30'!$H$1,A171:B172)/1000 -> 13
A75: 23 | B75: =DGET(TopCustomers,'Top 30'!$C$1,A173:B174) -> Barclays Capital | G75: =DGET(TopCustomers,'Top 30'!$D$1,A173:B174)/1000 -> 3 | H75: =DGET(TopCustomers,'Top 30'!$E$1,A173:B174)/1000 -> 3 | I75: =DGET(TopCustomers,'Top 30'!$F$1,A173:B174)/1000 -> 2 | J75: =DGET(TopCustomers,'Top 30'!$G$1,A173:B174)/1000 -> 3 | K75: =DGET(TopCustomers,'Top 30'!$H$1,A173:B174)/1000 -> 12
A76: 24 | B76: =DGET(TopCustomers,'Top 30'!$C$1,A175:B176) -> COUNTRYWIDE FUNDING | G76: =DGET(TopCustomers,'Top 30'!$D$1,A175:B176)/1000 -> 2 | H76: =DGET(TopCustomers,'Top 30'!$E$1,A175:B176)/1000 -> 5 | I76: =DGET(TopCustomers,'Top 30'!$F$1,A175:B176)/1000 -> 3 | J76: =DGET(TopCustomers,'Top 30'!$G$1,A175:B176)/1000 -> 2 | K76: =DGET(TopCustomers,'Top 30'!$H$1,A175:B176)/1000 -> 12
A77: 25 | B77: =DGET(TopCustomers,'Top 30'!$C$1,A177:B178) -> JP Morgan Chase | G77: =DGET(TopCustomers,'Top 30'!$D$1,A177:B178)/1000 -> 3 | H77: =DGET(TopCustomers,'Top 30'!$E$1,A177:B178)/1000 -> 3 | I77: =DGET(TopCustomers,'Top 30'!$F$1,A177:B178)/1000 -> 3 | J77: =DGET(TopCustomers,'Top 30'!$G$1,A177:B178)/1000 -> 3 | K77: =DGET(TopCustomers,'Top 30'!$H$1,A177:B178)/1000 -> 12
A78: 26 | B78: =DGET(TopCustomers,'Top 30'!$C$1,A179:B180) -> American Home Shield | G78: =DGET(TopCustomers,'Top 30'!$D$1,A179:B180)/1000 -> 2 | H78: =DGET(TopCustomers,'Top 30'!$E$1,A179:B180)/1000 -> 3 | I78: =DGET(TopCustomers,'Top 30'!$F$1,A179:B180)/1000 -> 3 | J78: =DGET(TopCustomers,'Top 30'!$G$1,A179:B180)/1000 -> 4 | K78: =DGET(TopCustomers,'Top 30'!$H$1,A179:B180)/1000 -> 12
A79: 27 | B79: =DGET(TopCustomers,'Top 30'!$C$1,A181:B182) -> Yellow/Roadway Corporation | G79: =DGET(TopCustomers,'Top 30'!$D$1,A181:B182)/1000 -> 2 | H79: =DGET(TopCustomers,'Top 30'!$E$1,A181:B182)/1000 -> 2 | I79: =DGET(TopCustomers,'Top 30'!$F$1,A181:B182)/1000 -> 2 | J79: =DGET(TopCustomers,'Top 30'!$G$1,A181:B182)/1000 -> 5 | K79: =DGET(TopCustomers,'Top 30'!$H$1,A181:B182)/1000 -> 12
A80: 28 | B80: =DGET(TopCustomers,'Top 30'!$C$1,A183:B184) -> Wells Fargo & Co | G80: =DGET(TopCustomers,'Top 30'!$D$1,A183:B184)/1000 -> 4 | H80: =DGET(TopCustomers,'Top 30'!$E$1,A183:B184)/1000 -> 3 | I80: =DGET(TopCustomers,'Top 30'!$F$1,A183:B184)/1000 -> 2 | J80: =DGET(TopCustomers,'Top 30'!$G$1,A183:B184)/1000 -> 3 | K80: =DGET(TopCustomers,'Top 30'!$H$1,A183:B184)/1000 -> 11
A81: 29 | B81: =DGET(TopCustomers,'Top 30'!$C$1,A185:B186) -> Perot Systems | G81: =DGET(TopCustomers,'Top 30'!$D$1,A185:B186)/1000 -> 4 | H81: =DGET(TopCustomers,'Top 30'!$E$1,A185:B186)/1000 -> 4 | I81: =DGET(TopCustomers,'Top 30'!$F$1,A185:B186)/1000 -> 2 | J81: =DGET(TopCustomers,'Top 30'!$G$1,A185:B186)/1000 -> 1 | K81: =DGET(TopCustomers,'Top 30'!$H$1,A185:B186)/1000 -> 11
A82: 30 | B82: =DGET(TopCustomers,'Top 30'!$C$1,A187:B188) -> GreenPoint Mortgage | G82: =DGET(TopCustomers,'Top 30'!$D$1,A187:B188)/1000 -> 21 | H82: =DGET(TopCustomers,'Top 30'!$E$1,A187:B188)/1000 -> 26 | I82: =DGET(TopCustomers,'Top 30'!$F$1,A187:B188)/1000 -> 22 | J82: =DGET(TopCustomers,'Top 30'!$G$1,A187:B188)/1000 -> 31 | K82: =DGET(TopCustomers,'Top 30'!$H$1,A187:B188)/1000 -> 100
A84: ="Top 30 "&'Raw Data - Graph'!B5&" Customers' Call Volume" -> Top 30 Birmingham Customers' Call Volume | G84: =SUM(G53:G82) -> 249 | H84: =SUM(H53:H82) -> 297 | I84: =SUM(I53:I82) -> 253 | J84: =SUM(J53:J82) -> 282 | K84: =SUM(K53:K82) -> 1083
A86: ="Total "&'Raw Data - Graph'!B5&" Call Voume" -> Total Birmingham Call Voume | G86: ='Raw Data - Graph'!E5/1000 -> 2403 | H86: ='Raw Data - Graph'!F5/1000 -> 2550 | I86: ='Raw Data - Graph'!G5/1000 -> 2437 | J86: ='Raw Data - Graph'!H5/1000 -> 2460 | K86: =SUM(F86:J86) -> 9850
A88: Shares from Top 30 Customers | G88: =G84/G86 -> 0.1 | H88: =H84/H86 -> 0.12 | I88: =I84/I86 -> 0.1 | J88: =J84/J86 -> 0.11 | K88: =K84/K86 -> 0.11
A91: Source: Call Volume Database
A92: *Note: The determination of Top 30 Customers is based on last 4 months call volume
A129: Cert | B129: Solution Ranking (Solutions / Total Rev)
A130: ='Raw Data - Graph'!B4 -> B | B130: 1
A131: Cert | B131: Solution Ranking (Solutions / Total Rev)
A132: =$A$130 -> B | B132: =B130+1 -> 2
A133: Cert | B133: Solution Ranking (Solutions / Total Rev)
A134: =$A$130 -> B | B134: =B132+1 -> 3
A135: Cert | B135: Solution Ranking (Solutions / Total Rev)
A136: =$A$130 -> B | B136: =B134+1 -> 4
A137: Cert | B137: Solution Ranking (Solutions / Total Rev)
A138: =$A$130 -> B | B138: =B136+1 -> 5
A139: Cert | B139: Solution Ranking (Solutions / Total Rev)
A140: =$A$130 -> B | B140: =B138+1 -> 6
A141: Cert | B141: Solution Ranking (Solutions / Total Rev)
A142: =$A$130 -> B | B142: =B140+1 -> 7
A143: Cert | B143: Solution Ranking (Solutions / Total Rev)
A144: =$A$130 -> B | B144: =B142+1 -> 8
A145: Cert | B145: Solution Ranking (Solutions / Total Rev)
A146: =$A$130 -> B | B146: =B144+1 -> 9
A147: Cert | B147: Solution Ranking (Solutions / Total Rev)
A148: =$A$130 -> B | B148: =B146+1 -> 10
A149: Cert | B149: Solution Ranking (Solutions / Total Rev)
A150: =$A$130 -> B | B150: =B148+1 -> 11
A151: Cert | B151: Solution Ranking (Solutions / Total Rev)
A152: =$A$130 -> B | B152: =B150+1 -> 12
A153: Cert | B153: Solution Ranking (Solutions / Total Rev)
A154: =$A$130 -> B | B154: =B152+1 -> 13
A155: Cert | B155: Solution Ranking (Solutions / Total Rev)
A156: =$A$130 -> B | B156: =B154+1 -> 14
A157: Cert | B157: Solution Ranking (Solutions / Total Rev)
A158: =$A$130 -> B | B158: =B156+1 -> 15
A159: Cert | B159: Solution Ranking (Solutions / Total Rev)
A160: =$A$130 -> B | B160: =B158+1 -> 16
A161: Cert | B161: Solution Ranking (Solutions / Total Rev)
A162: =$A$130 -> B | B162: =B160+1 -> 17
A163: Cert | B163: Solution Ranking (Solutions / Total Rev)
A164: =$A$130 -> B | B164: =B162+1 -> 18
A165: Cert | B165: Solution Ranking (Solutions / Total Rev)
A166: =$A$130 -> B | B166: =B164+1 -> 19
A167: Cert | B167: Solution Ranking (Solutions / Total Rev)
A168: =$A$130 -> B | B168: =B166+1 -> 20
A169: Cert | B169: Solution Ranking (Solutions / Total Rev)
A170: =$A$130 -> B | B170: =B168+1 -> 21
A171: Cert | B171: Solution Ranking (Solutions / Total Rev)
A172: =$A$130 -> B | B172: =B170+1 -> 22
A173: Cert | B173: Solution Ranking (Solutions / Total Rev)
A174: =$A$130 -> B | B174: =B172+1 -> 23
A175: Cert | B175: Solution Ranking (Solutions / Total Rev)
A176: =$A$130 -> B | B176: =B174+1 -> 24
A177: Cert | B177: Solution Ranking (Solutions / Total Rev)
A178: =$A$130 -> B | B178: =B176+1 -> 25
A179: Cert | B179: Solution Ranking (Solutions / Total Rev)
A180: =$A$130 -> B | B180: =B178+1 -> 26
A181: Cert | B181: Solution Ranking (Solutions / Total Rev)
A182: =$A$130 -> B | B182: =B180+1 -> 27
A183: Cert | B183: Solution Ranking (Solutions / Total Rev)
A184: =$A$130 -> B | B184: =B182+1 -> 28
A185: Cert | B185: Solution Ranking (Solutions / Total Rev)
A186: =$A$130 -> B | B186: =B184+1 -> 29
A187: Cert | B187: Solution Ranking (Solutions / Total Rev)
A188: =$A$130 -> B | B188: =B186+1 -> 30
C304: Lean Six Sigma Call Center - Control - to hold the gains
A307: Call Center | C307: =IF(Graph!D308=1,Type!D301,IF(AND(Graph!D308=2),Type!D302,IF(AND(Graph!D308=3),Type!D303,IF(AND(Graph!D308=4),Type!D304,IF(AND(Graph!D308=5),Type!D305,IF(AND(Graph!D308=6),Type!D306,"NA")))))) -> 0
D308: 2
A340: The six charts on the right provide the call volume (bar), trends (dotted line),
A341: and average drop rate (solid line).
A343: Source: Call Volume Database

Sheet Raw Data - Graph (hidden)
A2: Lookup
A3: =Graph!D9 -> 2
A4: Cert | B4: =IF(Graph!D9=1,Type!C2,IF(AND(Graph!D9=2),Type!C3,IF(AND(Graph!D9=3),Type!C4,IF(AND(Graph!D9=4),Type!C5,IF(AND(Graph!D9=5),Type!C6,IF(AND(Graph!D9=6),"UN","NA")))))) -> B | D4: Jan | E4: Feb | F4: Mar | G4: Apr | H4: May | I4: Jun | J4: Jul | K4: Aug | L4: Sep | M4: Oct | N4: Nov | O4: Dec | P4: CY2008 | R4: Jan Vol | S4: Feb Vol | T4: Mar Vol | U4: Apr Vol | V4: May Vol
A5: =IF(A3=1,"G",IF(AND(A3=2),"B",IF(AND(A3=3),"C","NA"))) -> B | B5: =IF(Graph!D9=1,Type!D2,IF(AND(Graph!D9=2),Type!D3,IF(AND(Graph!D9=3),Type!D4,IF(AND(Graph!D9=4),Type!D5,IF(AND(Graph!D9=5),Type!D6,IF(AND(Graph!D9=6),Type!D7,"NA")))))) -> Birmingham | E5: =DSUM(Data,'Raw Data'!E$1,$A$4:$A$5) -> 2403070 | F5: =DSUM(Data,'Raw Data'!F$1,$A$4:$A$5) -> 2549546 | G5: =DSUM(Data,'Raw Data'!G$1,$A$4:$A$5) -> 2436803 | H5: =DSUM(Data,'Raw Data'!H$1,$A$4:$A$5) -> 2460404 | P5: =SUM(D5:O5) -> 9849823 | S5: =DSUM(Data,'Raw Data'!I$1,$A$4:$A$5) -> 56586650 | T5: =DSUM(Data,'Raw Data'!J$1,$A$4:$A$5) -> 69768451 | U5: =DSUM(Data,'Raw Data'!K$1,$A$4:$A$5) -> 59383905 | V5: =DSUM(Data,'Raw Data'!L$1,$A$4:$A$5) -> 66445034
A7: Cert | B7: Shift
A8: =$A$5 -> B | B8: Shift 1 | E8: =DSUM(Data,'Raw Data'!E$1,$A$7:$B$8) -> 490212 | F8: =DSUM(Data,'Raw Data'!F$1,$A$7:$B$8) -> 415966 | G8: =DSUM(Data,'Raw Data'!G$1,$A$7:$B$8) -> 534236 | H8: =DSUM(Data,'Raw Data'!H$1,$A$7:$B$8) -> 499943 | S8: =DSUM(Data,'Raw Data'!I$1,$A$7:$B$8) -> 5549145 | T8: =DSUM(Data,'Raw Data'!J$1,$A$7:$B$8) -> 6848510 | U8: =DSUM(Data,'Raw Data'!K$1,$A$7:$B$8) -> 5727511 | V8: =DSUM(Data,'Raw Data'!L$1,$A$7:$B$8) -> 6084581
A9: Cert | B9: Shift | E9: =E8/1000 -> 490 | F9: =F8/1000 -> 416 | G9: =G8/1000 -> 534 | H9: =H8/1000 -> 500 | P9: =SUM(D9:O9) -> 1940 | S9: =S8/1000 -> 5549 | T9: =T8/1000 -> 6849 | U9: =U8/1000 -> 5728 | V9: =V8/1000 -> 6085
A10: =$A$5 -> B | B10: Shift 2 | E10: =DSUM(Data,'Raw Data'!E$1,$A$9:$B$10) -> 663377 | F10: =DSUM(Data,'Raw Data'!F$1,$A$9:$B$10) -> 688421 | G10: =DSUM(Data,'Raw Data'!G$1,$A$9:$B$10) -> 566794 | H10: =DSUM(Data,'Raw Data'!H$1,$A$9:$B$10) -> 607961 | P10: 2526553 | S10: =DSUM(Data,'Raw Data'!I$1,$A$9:$B$10) -> 6516995 | T10: =DSUM(Data,'Raw Data'!J$1,$A$9:$B$10) -> 8431521 | U10: =DSUM(Data,'Raw Data'!K$1,$A$9:$B$10) -> 5649611 | V10: =DSUM(Data,'Raw Data'!L$1,$A$9:$B$10) -> 5934730
A11: Cert | B11: Shift | E11: =E10/1000 -> 663 | F11: =F10/1000 -> 688 | G11: =G10/1000 -> 567 | H11: =H10/1000 -> 608 | P11: 2526 | S11: =S10/1000 -> 6517 | T11: =T10/1000 -> 8432 | U11: =U10/1000 -> 5650 | V11: =V10/1000 -> 5935
A12: =$A$5 -> B | B12: Shift 3 | E12: =DSUM(Data,'Raw Data'!E$1,$A$11:$B$12) -> 440722 | F12: =DSUM(Data,'Raw Data'!F$1,$A$11:$B$12) -> 504051 | G12: =DSUM(Data,'Raw Data'!G$1,$A$11:$B$12) -> 421109 | H12: =DSUM(Data,'Raw Data'!H$1,$A$11:$B$12) -> 451343 | P12: 1817225 | S12: =DSUM(Data,'Raw Data'!I$1,$A$11:$B$12) -> 2651519 | T12: =DSUM(Data,'Raw Data'!J$1,$A$11:$B$12) -> 3132729 | U12: =DSUM(Data,'Raw Data'!K$1,$A$11:$B$12) -> 2747993 | V12: =DSUM(Data,'Raw Data'!L$1,$A$11:$B$12) -> 2816590
A13: Cert | B13: Shift | E13: =E12/1000 -> 441 | F13: =F12/1000 -> 504 | G13: =G12/1000 -> 421 | H13: =H12/1000 -> 451 | P13: 1817 | S13: =S12/1000 -> 2652 | T13: =T12/1000 -> 3133 | U13: =U12/1000 -> 2748 | V13: =V12/1000 -> 2817
A14: =$A$5 -> B | B14: Shift 4 | E14: =DSUM(Data,'Raw Data'!E$1,$A$13:$B$14) -> 541708 | F14: =DSUM(Data,'Raw Data'!F$1,$A$13:$B$14) -> 612900 | G14: =DSUM(Data,'Raw Data'!G$1,$A$13:$B$14) -> 559641 | H14: =DSUM(Data,'Raw Data'!H$1,$A$13:$B$14) -> 554413 | P14: 2268662 | S14: =DSUM(Data,'Raw Data'!I$1,$A$13:$B$14) -> 38035919 | T14: =DSUM(Data,'Raw Data'!J$1,$A$13:$B$14) -> 44903254 | U14: =DSUM(Data,'Raw Data'!K$1,$A$13:$B$14) -> 39833218 | V14: =DSUM(Data,'Raw Data'!L$1,$A$13:$B$14) -> 44925119
A15: Cert | B15: Shift | E15: =E14/1000 -> 542 | F15: =F14/1000 -> 613 | G15: =G14/1000 -> 560 | H15: =H14/1000 -> 554 | P15: 2269 | S15: =S14/1000 -> 38036 | T15: =T14/1000 -> 44903 | U15: =U14/1000 -> 39833 | V15: =V14/1000 -> 44925
A16: =$A$5 -> B | B16: Shift 5 | E16: =DSUM(Data,'Raw Data'!E$1,$A$15:$B$16) -> 267051 | F16: =DSUM(Data,'Raw Data'!F$1,$A$15:$B$16) -> 328208 | G16: =DSUM(Data,'Raw Data'!G$1,$A$15:$B$16) -> 355023 | H16: =DSUM(Data,'Raw Data'!H$1,$A$15:$B$16) -> 346744 | P16: 1297026 | S16: =DSUM(Data,'Raw Data'!I$1,$A$15:$B$16) -> 3833072 | T16: =DSUM(Data,'Raw Data'!J$1,$A$15:$B$16) -> 6452437 | U16: =DSUM(Data,'Raw Data'!K$1,$A$15:$B$16) -> 5425572 | V16: =DSUM(Data,'Raw Data'!L$1,$A$15:$B$16) -> 6684014
E17: =E16/1000 -> 267 | F17: =F16/1000 -> 328 | G17: =G16/1000 -> 355 | H17: =H16/1000 -> 347 | P17: 1297 | S17: =S16/1000 -> 3833 | T17: =T16/1000 -> 6452 | U17: =U16/1000 -> 5426 | V17: =V16/1000 -> 6684
A18: Cert | B18: Supervisor | P18: 0
A19: =$A$5 -> B | B19: A Smith | E19: =DSUM(Data,'Raw Data'!E$1,$A$18:$B$19) -> 218185 | F19: =DSUM(Data,'Raw Data'!F$1,$A$18:$B$19) -> 240897 | G19: =DSUM(Data,'Raw Data'!G$1,$A$18:$B$19) -> 200380 | H19: =DSUM(Data,'Raw Data'!H$1,$A$18:$B$19) -> 199541
A20: Cert | B20: Supervisor | E20: =E19/1000 -> 218 | F20: =F19/1000 -> 241 | G20: =G19/1000 -> 200 | H20: =H19/1000 -> 200 | P20: =SUM(D20:O20) -> 859
A21: =$A$5 -> B | B21: Ken Barton | E21: =DSUM(Data,'Raw Data'!E$1,$A$20:$B$21) -> 670227 | F21: =DSUM(Data,'Raw Data'!F$1,$A$20:$B$21) -> 747570 | G21: =DSUM(Data,'Raw Data'!G$1,$A$20:$B$21) -> 598740 | H21: =DSUM(Data,'Raw Data'!H$1,$A$20:$B$21) -> 690376 | P21: 2706913
A22: Cert | B22: Supervisor | E22: =E21/1000 -> 670 | F22: =F21/1000 -> 748 | G22: =G21/1000 -> 599 | H22: =H21/1000 -> 690 | P22: 2707
A23: =$A$5 -> B | B23: Sam Nancy | E23: =DSUM(Data,'Raw Data'!E$1,$A$22:$B$23) -> 1414766 | F23: =DSUM(Data,'Raw Data'!F$1,$A$22:$B$23) -> 1562184 | G23: =DSUM(Data,'Raw Data'!G$1,$A$22:$B$23) -> 1560647 | H23: =DSUM(Data,'Raw Data'!H$1,$A$22:$B$23) -> 1512490 | P23: 6050087
A24: Cert | B24: Supervisor | E24: =E23/1000 -> 1415 | F24: =F23/1000 -> 1562 | G24: =G23/1000 -> 1561 | H24: =H23/1000 -> 1512 | P24: 6050
A25: =$A$5 -> B | B25: Steve Wynn | E25: =DSUM(Data,'Raw Data'!E$1,$A$24:$B$25) -> 99892 | F25: =DSUM(Data,'Raw Data'!F$1,$A$24:$B$25) -> -1105 | G25: =DSUM(Data,'Raw Data'!G$1,$A$24:$B$25) -> 77036 | H25: =DSUM(Data,'Raw Data'!H$1,$A$24:$B$25) -> 57997 | P25: 233820
A26: Cert | B26: Supervisor | E26: =E25/1000 -> 100 | F26: =F25/1000 -> -1 | G26: =G25/1000 -> 77 | H26: =H25/1000 -> 58 | P26: 234
A27: =$A$5 -> B | B27: Keith Mill | E27: =DSUM(Data,'Raw Data'!E$1,$A$26:$B$27) -> 0 | F27: =DSUM(Data,'Raw Data'!F$1,$A$26:$B$27) -> 0 | G27: =DSUM(Data,'Raw Data'!G$1,$A$26:$B$27) -> 0 | H27: =DSUM(Data,'Raw Data'!H$1,$A$26:$B$27) -> 0 | P27: 0
A28: Cert | B28: Supervisor | E28: =E27/1000 -> 0 | F28: =F27/1000 -> 0 | G28: =G27/1000 -> 0 | H28: =H27/1000 -> 0 | P28: 0
A29: =$A$5 -> B | B29: John Long | E29: =DSUM(Data,'Raw Data'!E$1,$A$28:$B$29) -> 0 | F29: =DSUM(Data,'Raw Data'!F$1,$A$28:$B$29) -> 0 | G29: =DSUM(Data,'Raw Data'!G$1,$A$28:$B$29) -> 0 | H29: =DSUM(Data,'Raw Data'!H$1,$A$28:$B$29) -> 0 | P29: 0
A30: Cert | B30: Supervisor | E30: =E29/1000 -> 0 | F30: =F29/1000 -> 0 | G30: =G29/1000 -> 0 | H30: =H29/1000 -> 0 | P30: 0
A31: =$A$5 -> B | B31: Undefined | E31: =DSUM(Data,'Raw Data'!E$1,$A$30:$B$31) -> 0 | F31: =DSUM(Data,'Raw Data'!F$1,$A$30:$B$31) -> 0 | G31: =DSUM(Data,'Raw Data'!G$1,$A$30:$B$31) -> 0 | H31: =DSUM(Data,'Raw Data'!H$1,$A$30:$B$31) -> 0 | P31: 0
E32: =E31/1000 -> 0 | F32: =F31/1000 -> 0 | G32: =G31/1000 -> 0 | H32: =H31/1000 -> 0 | P32: 0
P33: 0
B34: ACTUAL | C34: =B19 -> A Smith | E34: =E20 -> 218 | F34: =F20 -> 241 | G34: =G20 -> 200 | H34: =H20 -> 200 | P34: 859
C35: =B21 -> Ken Barton | E35: =E22 -> 670 | F35: =F22 -> 748 | G35: =G22 -> 599 | H35: =H22 -> 690 | P35: =SUM(D35:O35) -> 2707
C36: =B23 -> Sam Nancy | E36: =E24 -> 1415 | F36: =F24 -> 1562 | G36: =G24 -> 1561 | H36: =H24 -> 1512 | P36: 6050
B37: Data feed to the | C37: =B25 -> Steve Wynn | E37: =E26 -> 100 | F37: =F26 -> -1 | G37: =G26 -> 77 | H37: =H26 -> 58 | P37: 234
B38: chart | C38: Keith Mill | E38: =E28 -> 0 | F38: =F28 -> 0 | G38: =G28 -> 0 | H38: =H28 -> 0 | P38: 0
C39: John Long | E39: =E30 -> 0 | F39: =F30 -> 0 | G39: =G30 -> 0 | H39: =H30 -> 0 | P39: 0
C40: Undefined | E40: =E32 -> 0 | F40: =F32 -> 0 | G40: =G32 -> 0 | H40: =H32 -> 0 | P40: 0
D42: MLK -1 | G42: Good Friday -1 | H42: Memorial Day -1
C43: #Business Days | D43: =D9+D11+D13+D15+D17 -> 0 | E43: =E9+E11+E13+E15+E17 -> 2403 | F43: 2549 | G43: 2437 | H43: 2460 | I43: 0 | J43: 0 | K43: 0 | L43: 0 | M43: 0 | N43: 0 | O43: 0 | P43: =P9+P11+P13+P15+P17 -> 9849
B45: Avg Rev Per Day | C45: Shift 1 | E45: =E9/E43 -> 0.2 | F45: =F9/F43 -> 0.16 | G45: =G9/G43 -> 0.22 | H45: =H9/H43 -> 0.2 | P45: =P9/P43 -> 0.2
B46: ('000) | C46: Shift 2 | E46: =E11/E43 -> 0.28 | F46: =F11/F43 -> 0.27 | G46: =G11/G43 -> 0.23 | H46: =H11/H43 -> 0.25 | P46: =P11/P43 -> 0.26
C47: Shift 3 | E47: =E13/E43 -> 0.18 | F47: =F13/F43 -> 0.2 | G47: =G13/G43 -> 0.17 | H47: =H13/H43 -> 0.18 | P47: =P13/P43 -> 0.18
C48: Shift 4 | E48: =E15/E43 -> 0.23 | F48: =F15/F43 -> 0.24 | G48: =G15/G43 -> 0.23 | H48: =H15/H43 -> 0.23 | P48: =P15/P43 -> 0.23
C49: Shift 5 | E49: =E17/E43 -> 0.11 | F49: =F17/F43 -> 0.13 | G49: =G17/G43 -> 0.15 | H49: =H17/H43 -> 0.14 | P49: =P17/P43 -> 0.13
B51: ADR | C51: Angelina Beitia | E51: =IF((E34=0),"",E34/$E$43) -> 0.09 | F51: =IF((F34=0),"",F34/$F$43) -> 0.09 | G51: =IF((G34=0),"",G34/$G$43) -> 0.08 | H51: =IF((H34=0),"",H34/$H$43) -> 0.08
C52: Frank Calabrese | E52: =IF((E35=0),"",E35/$E$43) -> 0.28 | F52: =IF((F35=0),"",F35/$F$43) -> 0.29 | G52: =IF((G35=0),"",G35/$G$43) -> 0.25 | H52: =IF((H35=0),"",H35/$H$43) -> 0.28
C53: Frank Gorkis | E53: 0.59 | F53: 0.61 | G53: 0.64 | H53: 0.61
B54: Data feed to the | C54: Kraig Brown | E54: 0.04 | F54: 0 | G54: 0.03 | H54: 0.02
B55: chart | C55: Mark Alexander
C56: Ryan Deutsch - VP
C57: No Manager Defined
E6477: =SUM('Raw Data'!E2:E5521) -> 2369974 | F6477: =SUM('Raw Data'!F2:F5521) -> 2590570 | G6477: =SUM('Raw Data'!G2:G5521) -> 2410304 | H6477: =SUM('Raw Data'!H2:H5521) -> 2436072

Sheet Graph - Cust
D5: Lean Six Sigma Call Center Dashboard
A7: Call Center | C7: =IF('Raw Data - Customized'!A2=1,Type!D2,IF(AND('Raw Data - Customized'!A2=2),Type!D3,IF(AND('Raw Data - Customized'!A2=3),Type!D4,IF(AND('Raw Data - Customized'!A2=4),Type!D5,IF(AND('Raw Data - Customized'!A2=5),Type!D6,IF(AND('Raw Data - Customized'!A2=6),Type!D7,"NA")))))) -> Greenville
A9: Shift | C9: =IF('Raw Data - Customized'!B2=1,Type!A2,IF(AND('Raw Data - Customized'!B2=2),Type!A3,IF(AND('Raw Data - Customized'!B2=3),Type!A4,IF(AND('Raw Data - Customized'!B2=4),Type!A5,IF(AND('Raw Data - Customized'!B2=5),Type!A6,IF(AND('Raw Data - Customized'!B2=6),Type!A8,"NA")))))) -> Shift 4
A11: ="Share (Call Volume '000) of "&C7&" among all Call Centers" -> Share (Call Volume '000) of Greenville among all Call Centers
H18: ="In the last 4 months, "&C7&" contributed "&ROUND('Raw Data - Customized'!K52*100,0)&"% of revenue among all Call Centers." -> In the last 4 months, Greenville contributed 53% of revenue among all Call Centers.
H19: =" Out of these "&ROUND('Raw Data - Customized'!K52*100,0)&"%," -> Out of these 53%,
G21: - | H21: =""&ROUND('Raw Data - Customized'!K45*100,0)&"% or "&ROUND('Raw Data - Customized'!J45/1000,2)&" thousand calls came from Shift 1" -> 6% or 1.22 thousand calls came from Shift 1
G23: - | H23: =""&ROUND('Raw Data - Customized'!K46*100,0)&"% or "&ROUND('Raw Data - Customized'!J46/1000,2)&" thousand calls came from Shift 2" -> 32% or 6.62 thousand calls came from Shift 2
G25: - | H25: =""&ROUND('Raw Data - Customized'!K47*100,0)&"% or "&ROUND('Raw Data - Customized'!J47/1000,2)&" thousand calls came from Shift 3" -> 3% or 0.53 thousand calls came from Shift 3
G27: - | H27: =""&ROUND('Raw Data - Customized'!K48*100,0)&"% or "&ROUND('Raw Data - Customized'!J48/1000,2)&" thousand calls came from Shift 5" -> 10% or 2.06 thousand calls came from Shift 5
G29: - | H29: =""&ROUND('Raw Data - Customized'!K49*100,0)&"% or "&ROUND('Raw Data - Customized'!J49/1000,2)&" thousand calls came from Shift 5" -> 3% or 0.53 thousand calls came from Shift 5
A36: Supervisor: | B36: ='Raw Data - Customized'!C21 -> Ken Barton
A38: ="Sales Call Contribution from "&B36&" for "&C7&"" -> Sales Call Contribution from Ken Barton for Greenville
J60: The Sales Call Contribution charts provide the call volume (bar),
J61: trends (dotted line), and average drop calls (solid line)
J62: ="per month for "&B36&"" -> per month for Ken Barton
A67: Source: Call Volume Database
A70: =""&B36&"'s Top 10 "&C7&" Customers" -> Ken Barton's Top 10 Greenville Customers
A72: Call Volume '000 | F72: Jan | G72: Feb | H72: Mar | I72: Apr | J72: May | K72: Total
A73: 1 | B73: =IF(ISERROR(DGET(TopCustomers,'Top 30'!$C$1,A105:C106)=TRUE),"",DGET(TopCustomers,'Top 30'!$C$1,A105:C106)) -> Ludwig Holding, LTD | G73: =IF(ISERROR(DGET(TopCustomers,'Top 30'!D$1,$A$105:$C$106)=TRUE),"",DGET(TopCustomers,'Top 30'!D$1,$A$105:$C$106)/1000) -> 55 | H73: =IF(ISERROR(DGET(TopCustomers,'Top 30'!E$1,$A$105:$C$106)=TRUE),"",DGET(TopCustomers,'Top 30'!E$1,$A$105:$C$106)/1000) -> 0 | I73: =IF(ISERROR(DGET(TopCustomers,'Top 30'!F$1,$A$105:$C$106)=TRUE),"",DGET(TopCustomers,'Top 30'!F$1,$A$105:$C$106)/1000) -> 0 | J73: =IF(ISERROR(DGET(TopCustomers,'Top 30'!G$1,$A$105:$C$106)=TRUE),"",DGET(TopCustomers,'Top 30'!G$1,$A$105:$C$106)/1000) -> 214 | K73: =SUM(F73:J73) -> 269
A74: =A73+1 -> 2 | B74: =IF(ISERROR(DGET(TopCustomers,'Top 30'!$C$1,A107:C108)=TRUE),"",DGET(TopCustomers,'Top 30'!$C$1,A107:C108)) -> GMAC Mortgage | G74: =IF(ISERROR(DGET(TopCustomers,'Top 30'!D$1,$A$107:$C$108)=TRUE),"",DGET(TopCustomers,'Top 30'!D$1,$A$107:$C$108)/1000) -> 33 | H74: =IF(ISERROR(DGET(TopCustomers,'Top 30'!E$1,$A$107:$C$108)=TRUE),"",DGET(TopCustomers,'Top 30'!E$1,$A$107:$C$108)/1000) -> 36 | I74: =IF(ISERROR(DGET(TopCustomers,'Top 30'!F$1,$A$107:$C$108)=TRUE),"",DGET(TopCustomers,'Top 30'!F$1,$A$107:$C$108)/1000) -> 33 | J74: =IF(ISERROR(DGET(TopCustomers,'Top 30'!G$1,$A$107:$C$108)=TRUE),"",DGET(TopCustomers,'Top 30'!G$1,$A$107:$C$108)/1000) -> 28 | K74: =SUM(F74:J74) -> 130
A75: =A74+1 -> 3 | B75: =IF(ISERROR(DGET(TopCustomers,'Top 30'!$C$1,A109:C110)=TRUE),"",DGET(TopCustomers,'Top 30'!$C$1,A109:C110)) -> Royal Caribbean International | G75: =IF(ISERROR(DGET(TopCustomers,'Top 30'!D$1,$A$109:$C$110)=TRUE),"",DGET(TopCustomers,'Top 30'!D$1,$A$109:$C$110)/1000) -> 23 | H75: =IF(ISERROR(DGET(TopCustomers,'Top 30'!E$1,$A$109:$C$110)=TRUE),"",DGET(TopCustomers,'Top 30'!E$1,$A$109:$C$110)/1000) -> 37 | I75: =IF(ISERROR(DGET(TopCustomers,'Top 30'!F$1,$A$109:$C$110)=TRUE),"",DGET(TopCustomers,'Top 30'!F$1,$A$109:$C$110)/1000) -> 20 | J75: =IF(ISERROR(DGET(TopCustomers,'Top 30'!G$1,$A$109:$C$110)=TRUE),"",DGET(TopCustomers,'Top 30'!G$1,$A$109:$C$110)/1000) -> 28 | K75: =SUM(F75:J75) -> 108
A76: 4 | B76: =IF(ISERROR(DGET(TopCustomers,'Top 30'!$C$1,A111:C112)=TRUE),"",DGET(TopCustomers,'Top 30'!$C$1,A111:C112)) -> LoanCity | G76: =IF(ISERROR(DGET(TopCustomers,'Top 30'!D$1,$A$111:$C$112)=TRUE),"",DGET(TopCustomers,'Top 30'!D$1,$A$111:$C$112)/1000) -> 27 | H76: =IF(ISERROR(DGET(TopCustomers,'Top 30'!E$1,$A$111:$C$112)=TRUE),"",DGET(TopCustomers,'Top 30'!E$1,$A$111:$C$112)/1000) -> 28 | I76: =IF(ISERROR(DGET(TopCustomers,'Top 30'!F$1,$A$111:$C$112)=TRUE),"",DGET(TopCustomers,'Top 30'!F$1,$A$111:$C$112)/1000) -> 24 | J76: =IF(ISERROR(DGET(TopCustomers,'Top 30'!G$1,$A$111:$C$112)=TRUE),"",DGET(TopCustomers,'Top 30'!G$1,$A$111:$C$112)/1000) -> 25 | K76: 104
A77: 5 | B77: =IF(ISERROR(DGET(TopCustomers,'Top 30'!$C$1,A113:C114)=TRUE),"",DGET(TopCustomers,'Top 30'!$C$1,A113:C114)) -> Option One Mortgage Corporation | G77: =IF(ISERROR(DGET(TopCustomers,'Top 30'!D$1,$A$113:$C$114)=TRUE),"",DGET(TopCustomers,'Top 30'!D$1,$A$113:$C$114)/1000) -> 22 | H77: =IF(ISERROR(DGET(TopCustomers,'Top 30'!E$1,$A$113:$C$114)=TRUE),"",DGET(TopCustomers,'Top 30'!E$1,$A$113:$C$114)/1000) -> 28 | I77: =IF(ISERROR(DGET(TopCustomers,'Top 30'!F$1,$A$113:$C$114)=TRUE),"",DGET(TopCustomers,'Top 30'!F$1,$A$113:$C$114)/1000) -> 15 | J77: =IF(ISERROR(DGET(TopCustomers,'Top 30'!G$1,$A$113:$C$114)=TRUE),"",DGET(TopCustomers,'Top 30'!G$1,$A$113:$C$114)/1000) -> 28 | K77: 93
A78: 6 | B78: =IF(ISERROR(DGET(TopCustomers,'Top 30'!$C$1,A115:C116)=TRUE),"",DGET(TopCustomers,'Top 30'!$C$1,A115:C116)) -> Chapel Funding | G78: =IF(ISERROR(DGET(TopCustomers,'Top 30'!D$1,$A$115:$C$116)=TRUE),"",DGET(TopCustomers,'Top 30'!D$1,$A$115:$C$116)/1000) -> 23 | H78: =IF(ISERROR(DGET(TopCustomers,'Top 30'!E$1,$A$115:$C$116)=TRUE),"",DGET(TopCustomers,'Top 30'!E$1,$A$115:$C$116)/1000) -> 27 | I78: =IF(ISERROR(DGET(TopCustomers,'Top 30'!F$1,$A$115:$C$116)=TRUE),"",DGET(TopCustomers,'Top 30'!F$1,$A$115:$C$116)/1000) -> 20 | J78: =IF(ISERROR(DGET(TopCustomers,'Top 30'!G$1,$A$115:$C$116)=TRUE),"",DGET(TopCustomers,'Top 30'!G$1,$A$115:$C$116)/1000) -> 9 | K78: 79
A79: 7 | B79: =IF(ISERROR(DGET(TopCustomers,'Top 30'!$C$1,A117:C118)=TRUE),"",DGET(TopCustomers,'Top 30'!$C$1,A117:C118)) -> Quiznos Master LLC | G79: =IF(ISERROR(DGET(TopCustomers,'Top 30'!D$1,$A$117:$C$118)=TRUE),"",DGET(TopCustomers,'Top 30'!D$1,$A$117:$C$118)/1000) -> 17 | H79: =IF(ISERROR(DGET(TopCustomers,'Top 30'!E$1,$A$117:$C$118)=TRUE),"",DGET(TopCustomers,'Top 30'!E$1,$A$117:$C$118)/1000) -> 21 | I79: =IF(ISERROR(DGET(TopCustomers,'Top 30'!F$1,$A$117:$C$118)=TRUE),"",DGET(TopCustomers,'Top 30'!F$1,$A$117:$C$118)/1000) -> 19 | J79: =IF(ISERROR(DGET(TopCustomers,'Top 30'!G$1,$A$117:$C$118)=TRUE),"",DGET(TopCustomers,'Top 30'!G$1,$A$117:$C$118)/1000) -> 20 | K79: 77
A80: =A79+1 -> 8 | B80: =IF(ISERROR(DGET(TopCustomers,'Top 30'!$C$1,A119:C120)=TRUE),"",DGET(TopCustomers,'Top 30'!$C$1,A119:C120)) -> Heritage Sportswear Inc | G80: =IF(ISERROR(DGET(TopCustomers,'Top 30'!D$1,$A$119:$C$120)=TRUE),"",DGET(TopCustomers,'Top 30'!D$1,$A$119:$C$120)/1000) -> 15 | H80: =IF(ISERROR(DGET(TopCustomers,'Top 30'!E$1,$A$119:$C$120)=TRUE),"",DGET(TopCustomers,'Top 30'!E$1,$A$119:$C$120)/1000) -> 12 | I80: =IF(ISERROR(DGET(TopCustomers,'Top 30'!F$1,$A$119:$C$120)=TRUE),"",DGET(TopCustomers,'Top 30'!F$1,$A$119:$C$120)/1000) -> 20 | J80: =IF(ISERROR(DGET(TopCustomers,'Top 30'!G$1,$A$119:$C$120)=TRUE),"",DGET(TopCustomers,'Top 30'!G$1,$A$119:$C$120)/1000) -> 25 | K80: =SUM(F80:J80) -> 72
A81: 9 | B81: =IF(ISERROR(DGET(TopCustomers,'Top 30'!$C$1,A121:C122)=TRUE),"",DGET(TopCustomers,'Top 30'!$C$1,A121:C122)) -> HSBC Mortgage Corporation USA | G81: =IF(ISERROR(DGET(TopCustomers,'Top 30'!D$1,$A$121:$C$122)=TRUE),"",DGET(TopCustomers,'Top 30'!D$1,$A$121:$C$122)/1000) -> 18 | H81: =IF(ISERROR(DGET(TopCustomers,'Top 30'!E$1,$A$121:$C$122)=TRUE),"",DGET(TopCustomers,'Top 30'!E$1,$A$121:$C$122)/1000) -> 18 | I81: =IF(ISERROR(DGET(TopCustomers,'Top 30'!F$1,$A$121:$C$122)=TRUE),"",DGET(TopCustomers,'Top 30'!F$1,$A$121:$C$122)/1000) -> 13 | J81: =IF(ISERROR(DGET(TopCustomers,'Top 30'!G$1,$A$121:$C$122)=TRUE),"",DGET(TopCustomers,'Top 30'!G$1,$A$121:$C$122)/1000) -> 13 | K81: 62
A82: 10 | B82: =IF(ISERROR(DGET(TopCustomers,'Top 30'!$C$1,A123:C124)=TRUE),"",DGET(TopCustomers,'Top 30'!$C$1,A123:C124)) -> HomeComings Financial Network | G82: =IF(ISERROR(DGET(TopCustomers,'Top 30'!D$1,$A$123:$C$124)=TRUE),"",DGET(TopCustomers,'Top 30'!D$1,$A$123:$C$124)/1000) -> 14 | H82: =IF(ISERROR(DGET(TopCustomers,'Top 30'!E$1,$A$123:$C$124)=TRUE),"",DGET(TopCustomers,'Top 30'!E$1,$A$123:$C$124)/1000) -> 17 | I82: =IF(ISERROR(DGET(TopCustomers,'Top 30'!F$1,$A$123:$C$124)=TRUE),"",DGET(TopCustomers,'Top 30'!F$1,$A$123:$C$124)/1000) -> 15 | J82: =IF(ISERROR(DGET(TopCustomers,'Top 30'!G$1,$A$123:$C$124)=TRUE),"",DGET(TopCustomers,'Top 30'!G$1,$A$123:$C$124)/1000) -> 16 | K82: 62
A84: =""&B36&"'s Top 10 "&C7&" Customers" -> Ken Barton's Top 10 Greenville Customers | F84: =SUM(F73:F82) -> 0 | G84: 247 | H84: 224 | I84: 179 | J84: 406 | K84: 1056
A86: =""&B36&"'s Total "&C7&" Customers" -> Ken Barton's Total Greenville Customers | F86: ='Raw Data - Customized'!D73 -> 0 | G86: ='Raw Data - Customized'!E73 -> 2030 | H86: ='Raw Data - Customized'!F73 -> 2232 | I86: ='Raw Data - Customized'!G73 -> 1932 | J86: ='Raw Data - Customized'!H73 -> 2249 | K86: =SUM(F86:J86) -> 8443
A87: ="Shares from "&B36&"'s Top 10 Customers" -> Shares from Ken Barton's Top 10 Customers | G87: =G84/G86 -> 0.12 | H87: =H84/H86 -> 0.1 | I87: =I84/I86 -> 0.09 | J87: =J84/J86 -> 0.18 | K87: =K84/K86 -> 0.13
A89: ="Total "&C7&" Customers from ALL sales supervisors" -> Total Greenville Customers from ALL sales supervisors | F89: ='Raw Data - Customized'!D5/1000 -> 0 | G89: ='Raw Data - Customized'!E5/1000 -> 2641 | H89: ='Raw Data - Customized'!F5/1000 -> 2900 | I89: ='Raw Data - Customized'!G5/1000 -> 2541 | J89: ='Raw Data - Customized'!H5/1000 -> 2863 | K89: =SUM(F89:J89) -> 10945
A90: ="Shares from "&B36&"'s Top 10 Customers" -> Shares from Ken Barton's Top 10 Customers | G90: =G84/G89 -> 0.09 | H90: =H84/H89 -> 0.08 | I90: =I84/I89 -> 0.07 | J90: =J84/J89 -> 0.14 | K90: =K84/K89 -> 0.1
A93: *The determination of Top 10 Customers is based on last 4 months call volume
A94: Source: Call Volume Database
A105: Cert | B105: Supervisor | C105: Sales Ranking
A106: ='Raw Data - Customized'!$B$4 -> G | B106: =$B$36 -> Ken Barton | C106: 1
A107: Cert | B107: Supervisor | C107: Sales Ranking
A108: =$A$106 -> G | B108: =$B$36 -> Ken Barton | C108: =C106+1 -> 2
A109: Cert | B109: Supervisor | C109: Sales Ranking
A110: =$A$106 -> G | B110: =$B$36 -> Ken Barton | C110: =C108+1 -> 3
A111: Cert | B111: Supervisor | C111: Sales Ranking
A112: =$A$106 -> G | B112: =$B$36 -> Ken Barton | C112: =C110+1 -> 4
A113: Cert | B113: Supervisor | C113: Sales Ranking
A114: =$A$106 -> G | B114: =$B$36 -> Ken Barton | C114: =C112+1 -> 5
A115: Cert | B115: Supervisor | C115: Sales Ranking
A116: =$A$106 -> G | B116: =$B$36 -> Ken Barton | C116: =C114+1 -> 6
A117: Cert | B117: Supervisor | C117: Sales Ranking
A118: =$A$106 -> G | B118: =$B$36 -> Ken Barton | C118: =C116+1 -> 7
A119: Cert | B119: Supervisor | C119: Sales Ranking
A120: =$A$106 -> G | B120: =$B$36 -> Ken Barton | C120: =C118+1 -> 8
A121: Cert | B121: Supervisor | C121: Sales Ranking
A122: =$A$106 -> G | B122: =$B$36 -> Ken Barton | C122: =C120+1 -> 9
A123: Cert | B123: Supervisor | C123: Sales Ranking
A124: =$A$106 -> G | B124: =$B$36 -> Ken Barton | C124: =C122+1 -> 10

Sheet Raw Data - Customized (hidden)
A1: Practice Group | B1: Courses | C1: Instructors
A2: =Menu!D15 -> 1 | B2: =Menu!D17 -> 4 | C2: =Menu!D19 -> 1
A4: Cert | B4: =IF(Menu!D15=1,"G",IF(AND(Menu!D15=2),"B",IF(AND(Menu!D15=3),Type!C4,IF(AND(Menu!D15=4),Type!C5,IF(AND(Menu!D15=5),Type!C6,IF(AND(Menu!D15=6),"UN","NA")))))) -> G | D4: Jan | E4: Feb | F4: Mar | G4: Apr | H4: May | I4: Jun | J4: Jul | K4: Aug | L4: Sep | M4: Oct | N4: Nov | O4: Dec | Q4: Jan Vol | R4: Feb Vol | S4: Mar Vol | T4: Apr Vol | U4: May Vol
A5: =IF(A2=1,"G",IF(AND(A2=2),"B",IF(AND(A2=3),"A","NA"))) -> G | B5: =IF(Menu!D15=1,Type!D2,IF(AND(Menu!D15=2),Type!D3,IF(AND(Menu!D15=3),Type!D4,IF(AND(Menu!D15=4),Type!D5,IF(AND(Menu!D15=5),Type!D6,IF(AND(Menu!D15=6),"UN","NA")))))) -> Greenville | E5: =DSUM(Data,'Raw Data'!E$1,$A$4:$A$5) -> 2640761 | F5: =DSUM(Data,'Raw Data'!F$1,$A$4:$A$5) -> 2899849 | G5: =DSUM(Data,'Raw Data'!G$1,$A$4:$A$5) -> 2541080 | H5: =DSUM(Data,'Raw Data'!H$1,$A$4:$A$5) -> 2863115 | Q5: =DSUM(Data,'Raw Data'!I$1,$A$4:$A$5) -> 42045296
A7: Cert
A8: A | E8: =DSUM(Data,'Raw Data'!E$1,$A$7:$A$8) -> 0 | F8: =DSUM(Data,'Raw Data'!F$1,$A$7:$A$8) -> 0 | G8: =DSUM(Data,'Raw Data'!G$1,$A$7:$A$8) -> 0 | H8: =DSUM(Data,'Raw Data'!H$1,$A$7:$A$8) -> 0
A9: Cert | E9: =E8/1000 -> 0 | F9: =F8/1000 -> 0 | G9: =G8/1000 -> 0 | H9: =H8/1000 -> 0
A10: G | E10: =DSUM(Data,'Raw Data'!E$1,$A$9:$A$10) -> 2640761 | F10: =DSUM(Data,'Raw Data'!F$1,$A$9:$A$10) -> 2899849 | G10: =DSUM(Data,'Raw Data'!G$1,$A$9:$A$10) -> 2541080 | H10: =DSUM(Data,'Raw Data'!H$1,$A$9:$A$10) -> 2863115
A11: Cert | E11: =E10/1000 -> 2641 | F11: =F10/1000 -> 2900 | G11: =G10/1000 -> 2541 | H11: =H10/1000 -> 2863
A12: B | E12: =DSUM(Data,'Raw Data'!E$1,$A$11:$A$12) -> 2403070 | F12: =DSUM(Data,'Raw Data'!F$1,$A$11:$A$12) -> 2549546 | G12: =DSUM(Data,'Raw Data'!G$1,$A$11:$A$12) -> 2436803 | H12: =DSUM(Data,'Raw Data'!H$1,$A$11:$A$12) -> 2460404
A13: Cert | E13: =E12/1000 -> 2403 | F13: =F12/1000 -> 2550 | G13: =G12/1000 -> 2437 | H13: =H12/1000 -> 2460
A14: MSC | E14: =DSUM(Data,'Raw Data'!E$1,$A$13:$A$14) -> 0 | F14: =DSUM(Data,'Raw Data'!F$1,$A$13:$A$14) -> 0 | G14: =DSUM(Data,'Raw Data'!G$1,$A$13:$A$14) -> 0 | H14: =DSUM(Data,'Raw Data'!H$1,$A$13:$A$14) -> 0
A15: Cert | E15: =E14/1000 -> 0 | F15: =F14/1000 -> 0 | G15: =G14/1000 -> 0 | H15: =H14/1000 -> 0
A16: UN | E16: =DSUM(Data,'Raw Data'!E$1,$A$15:$A$16) -> 0 | F16: =DSUM(Data,'Raw Data'!F$1,$A$15:$A$16) -> 0 | G16: =DSUM(Data,'Raw Data'!G$1,$A$15:$A$16) -> 0 | H16: =DSUM(Data,'Raw Data'!H$1,$A$15:$A$16) -> 0
A17: Cert | E17: =E16/1000 -> 0 | F17: =F16/1000 -> 0 | G17: =G16/1000 -> 0 | H17: =H16/1000 -> 0
E18: =DSUM(Data,'Raw Data'!E$1,$A$17:$A$18) -> 5043831 | F18: =DSUM(Data,'Raw Data'!F$1,$A$17:$A$18) -> 5449395 | G18: =DSUM(Data,'Raw Data'!G$1,$A$17:$A$18) -> 4977883 | H18: =DSUM(Data,'Raw Data'!H$1,$A$17:$A$18) -> 5323519
E19: =E18/1000 -> 5044 | F19: =F18/1000 -> 5449 | G19: =G18/1000 -> 4978 | H19: =H18/1000 -> 5324
A20: Cert | B20: Shift | C20: Supervisor
A21: =IF(A2=1,"G",IF(AND(A2=2),"B",IF(AND(A2=3),"A","NA"))) -> G | B21: =IF(B2=1,Type!A15,IF(AND(B2=2),Type!A16,IF(AND(B2=3),Type!A17,IF(AND(B2=4),Type!A18,IF(AND(B2=5),Type!A19,IF(AND(B2=6),Type!A20,"NA")))))) -> Shift 4 | C21: =IF(C2=1,Type!F2,IF(AND(C2=2),Type!F3,IF(AND(C2=3),Type!F4,IF(AND(C2=4),Type!F5,IF(AND(C2=5),Type!F6,IF(AND(C2=6),Type!F7,IF(AND(C2=7),Type!F8,"NA"))))))) -> Ken Barton | E21: =DSUM(Data,'Raw Data'!E$1,$A$20:$C$21) -> 424095 | F21: =DSUM(Data,'Raw Data'!F$1,$A$20:$C$21) -> 514259 | G21: =DSUM(Data,'Raw Data'!G$1,$A$20:$C$21) -> 485516 | H21: =DSUM(Data,'Raw Data'!H$1,$A$20:$C$21) -> 459434
C22: =IF(C2=1,Type!F2,IF(AND(C2=2),Type!F3,IF(AND(C2=3),Type!F4,IF(AND(C2=4),Type!F5,IF(AND(C2=5),Type!F6,IF(AND(C2=6),Type!F7,IF(AND(C2=7),Type!F8,"NA"))))))) -> Ken Barton | E22: =E21/1000 -> 424 | F22: =F21/1000 -> 514 | G22: =G21/1000 -> 486 | H22: =H21/1000 -> 459
A23: Cert | B23: Shift
A24: =$A$21 -> G | B24: Shift 1 | E24: =DSUM(Data,'Raw Data'!E$1,$A$23:$B$24) -> 294364 | F24: =DSUM(Data,'Raw Data'!F$1,$A$23:$B$24) -> 311681 | G24: =DSUM(Data,'Raw Data'!G$1,$A$23:$B$24) -> 319634 | H24: =DSUM(Data,'Raw Data'!H$1,$A$23:$B$24) -> 293123
A25: Cert | B25: Shift | E25: =E24/1000 -> 294 | F25: =F24/1000 -> 312 | G25: =G24/1000 -> 320 | H25: =H24/1000 -> 293
A26: =$A$21 -> G | B26: Shift 2 | E26: =DSUM(Data,'Raw Data'!E$1,$A$25:$B$26) -> 1640230 | F26: =DSUM(Data,'Raw Data'!F$1,$A$25:$B$26) -> 1717932 | G26: =DSUM(Data,'Raw Data'!G$1,$A$25:$B$26) -> 1445997 | H26: =DSUM(Data,'Raw Data'!H$1,$A$25:$B$26) -> 1811006
A27: Cert | B27: Shift | E27: =E26/1000 -> 1640 | F27: =F26/1000 -> 1718 | G27: =G26/1000 -> 1446 | H27: =H26/1000 -> 1811
A28: =$A$21 -> G | B28: Shift 3 | E28: =DSUM(Data,'Raw Data'!E$1,$A$27:$B$28) -> 125805 | F28: =DSUM(Data,'Raw Data'!F$1,$A$27:$B$28) -> 141572 | G28: =DSUM(Data,'Raw Data'!G$1,$A$27:$B$28) -> 131829 | H28: =DSUM(Data,'Raw Data'!H$1,$A$27:$B$28) -> 128083
A29: Cert | B29: Shift | E29: =E28/1000 -> 126 | F29: =F28/1000 -> 142 | G29: =G28/1000 -> 132 | H29: =H28/1000 -> 128
A30: =$A$21 -> G | B30: Shift 4 | E30: =DSUM(Data,'Raw Data'!E$1,$A$29:$B$30) -> 475731 | F30: =DSUM(Data,'Raw Data'!F$1,$A$29:$B$30) -> 563566 | G30: =DSUM(Data,'Raw Data'!G$1,$A$29:$B$30) -> 533426 | H30: =DSUM(Data,'Raw Data'!H$1,$A$29:$B$30) -> 482358
A31: Cert | B31: Shift | E31: =E30/1000 -> 476 | F31: =F30/1000 -> 564 | G31: =G30/1000 -> 533 | H31: =H30/1000 -> 482
A32: =$A$21 -> G | B32: Shift 5 | E32: =DSUM(Data,'Raw Data'!E$1,$A$31:$B$32) -> 104631 | F32: =DSUM(Data,'Raw Data'!F$1,$A$31:$B$32) -> 165098 | G32: =DSUM(Data,'Raw Data'!G$1,$A$31:$B$32) -> 110194 | H32: =DSUM(Data,'Raw Data'!H$1,$A$31:$B$32) -> 148545
E33: =E32/1000 -> 105 | F33: =F32/1000 -> 165 | G33: =G32/1000 -> 110 | H33: =H32/1000 -> 149
D37: AN | E37: =IF(E9-E43=0,"",E9) -> 0 | F37: =IF(F9-F43=0,"",F9) -> 0 | G37: =IF(G9-G43=0,"",G9) -> 0 | H37: =IF(H9-H43=0,"",H9) -> 0 | J37: =SUM(E37:I37) -> 0 | K37: =J37/$J$52 -> 0
D38: DM | E38: =IF(E11-E43=0,"",E11) ->  | F38: =IF(F11-F43=0,"",F11) ->  | G38: =IF(G11-G43=0,"",G11) ->  | H38: =IF(H11-H43=0,"",H11) ->  | J38: =SUM(E38:I38) -> 0 | K38: =J38/$J$52 -> 0
D39: MA | E39: =IF(E13-E43=0,"",E13) -> 2403 | F39: =IF(F13-F43=0,"",F13) -> 2550 | G39: =IF(G13-G43=0,"",G13) -> 2437 | H39: =IF(H13-H43=0,"",H13) -> 2460 | J39: =SUM(E39:I39) -> 9850 | K39: =J39/$J$52 -> 0.474
D40: MSC | E40: =IF(E15-E43=0,"",E15) -> 0 | F40: =IF(F15-F43=0,"",F15) -> 0 | G40: =IF(G15-G43=0,"",G15) -> 0 | H40: =IF(H15-H43=0,"",H15) -> 0 | J40: =SUM(E40:I40) -> 0 | K40: =J40/$J$52 -> 0
D41: UN | E41: =IF(E17-E43=0,"",E17) -> 0 | F41: =IF(F17-F43=0,"",F17) -> 0 | G41: =IF(G17-G43=0,"",G17) -> 0 | H41: =IF(H17-H43=0,"",H17) -> 0 | J41: =SUM(E41:I41) -> 0 | K41: =J41/$J$52 -> 0
E43: =E5/1000 -> 2641 | F43: =F5/1000 -> 2900 | G43: =G5/1000 -> 2541 | H43: =H5/1000 -> 2863
D45: Shift 1 | E45: =E25 -> 294 | F45: =F25 -> 312 | G45: =G25 -> 320 | H45: =H25 -> 293 | J45: =SUM(E45:I45) -> 1219 | K45: =J45/$J$52 -> 0.06
D46: Shift 2 | E46: =E27 -> 1640 | F46: =F27 -> 1718 | G46: =G27 -> 1446 | H46: =H27 -> 1811 | J46: =SUM(E46:I46) -> 6615 | K46: =J46/$J$52 -> 0.32
D47: Shift 3 | E47: =E29 -> 126 | F47: =F29 -> 142 | G47: =G29 -> 132 | H47: =H29 -> 128 | J47: =SUM(E47:I47) -> 528 | K47: =J47/$J$52 -> 0.03
D48: Shift 4 | E48: =E31 -> 476 | F48: =F31 -> 564 | G48: =G31 -> 533 | H48: =H31 -> 482 | J48: =SUM(E48:I48) -> 2055 | K48: =J48/$J$52 -> 0.1
D49: Shift 5 | E49: =E33 -> 105 | F49: =F33 -> 165 | G49: =G33 -> 110 | H49: =H33 -> 149 | J49: =SUM(E49:I49) -> 529 | K49: =J49/$J$52 -> 0.03
K50: =SUM(J45:J49) -> 10946 | L50: =SUM(K45:K49) -> 0.54
J52: =SUM(J37:J49) -> 20796 | K52: =1-K41-K40-K39-K38-K37 -> 0.53
A54: Cert | B54: Supervisor | C54: Shift
A55: =$A$21 -> G | B55: =$C$22 -> Ken Barton | C55: Shift 1 | E55: =DSUM(Data,'Raw Data'!E$1,$A$54:$C$55) -> 37896 | F55: =DSUM(Data,'Raw Data'!F$1,$A$54:$C$55) -> 42306 | G55: =DSUM(Data,'Raw Data'!G$1,$A$54:$C$55) -> 37911 | H55: =DSUM(Data,'Raw Data'!H$1,$A$54:$C$55) -> 42972
A56: Cert | B56: Supervisor | C56: Shift | E56: =E55/1000 -> 38 | F56: =F55/1000 -> 42 | G56: =G55/1000 -> 38 | H56: =H55/1000 -> 43
A57: =$A$21 -> G | B57: =$C$22 -> Ken Barton | C57: Shift 2 | E57: =DSUM(Data,'Raw Data'!E$1,$A$56:$C$57) -> 1432038 | F57: =DSUM(Data,'Raw Data'!F$1,$A$56:$C$57) -> 1482792 | G57: =DSUM(Data,'Raw Data'!G$1,$A$56:$C$57) -> 1250282 | H57: =DSUM(Data,'Raw Data'!H$1,$A$56:$C$57) -> 1568397
A58: Cert | B58: Supervisor | C58: Shift | E58: =E57/1000 -> 1432 | F58: =F57/1000 -> 1483 | G58: =G57/1000 -> 1250 | H58: =H57/1000 -> 1568
A59: =$A$21 -> G | B59: =$C$22 -> Ken Barton | C59: Shift 3 | E59: =DSUM(Data,'Raw Data'!E$1,$A$58:$C$59) -> 47161 | F59: =DSUM(Data,'Raw Data'!F$1,$A$58:$C$59) -> 48362 | G59: =DSUM(Data,'Raw Data'!G$1,$A$58:$C$59) -> 53744 | H59: =DSUM(Data,'Raw Data'!H$1,$A$58:$C$59) -> 56391
A60: Cert | B60: Supervisor | C60: Shift | E60: =E59/1000 -> 47 | F60: =F59/1000 -> 48 | G60: =G59/1000 -> 54 | H60: =H59/1000 -> 56
A61: =$A$21 -> G | B61: =$C$22 -> Ken Barton | C61: Shift 4 | E61: =DSUM(Data,'Raw Data'!E$1,$A$60:$C$61) -> 424095 | F61: =DSUM(Data,'Raw Data'!F$1,$A$60:$C$61) -> 514259 | G61: =DSUM(Data,'Raw Data'!G$1,$A$60:$C$61) -> 485516 | H61: =DSUM(Data,'Raw Data'!H$1,$A$60:$C$61) -> 459434
A62: Cert | B62: Supervisor | C62: Shift | E62: =E61/1000 -> 424 | F62: =F61/1000 -> 514 | G62: =G61/1000 -> 486 | H62: =H61/1000 -> 459
A63: =$A$21 -> G | B63: =$C$22 -> Ken Barton | C63: Shift 5 | E63: =DSUM(Data,'Raw Data'!E$1,$A$62:$C$63) -> 89159 | F63: =DSUM(Data,'Raw Data'!F$1,$A$62:$C$63) -> 145436 | G63: =DSUM(Data,'Raw Data'!G$1,$A$62:$C$63) -> 104305 | H63: =DSUM(Data,'Raw Data'!H$1,$A$62:$C$63) -> 122982
E64: =E63/1000 -> 89 | F64: =F63/1000 -> 145 | G64: =G63/1000 -> 104 | H64: =H63/1000 -> 123
B67: Actual | C67: =B55 -> Ken Barton | E67: =E56 -> 38 | F67: =F56 -> 42 | G67: =G56 -> 38 | H67: =H56 -> 43
C68: =B57 -> Ken Barton | E68: =E58 -> 1432 | F68: =F58 -> 1483 | G68: =G58 -> 1250 | H68: =H58 -> 1568
C69: =B59 -> Ken Barton | E69: =E60 -> 47 | F69: =F60 -> 48 | G69: =G60 -> 54 | H69: =H60 -> 56
B70: Data feed to the | C70: =B61 -> Ken Barton | E70: =E62 -> 424 | F70: =F62 -> 514 | G70: =G62 -> 486 | H70: =H62 -> 459
B71: chart | C71: =B63 -> Ken Barton | E71: =E64 -> 89 | F71: =F64 -> 145 | G71: =G64 -> 104 | H71: =H64 -> 123
C73: Total | E73: =SUM(E67:E72) -> 2030 | F73: =SUM(F67:F72) -> 2232 | G73: =SUM(G67:G72) -> 1932 | H73: =SUM(H67:H72) -> 2249
C75: #Business Days | D75: ='Raw Data - Graph'!D43 -> 0 | E75: ='Raw Data - Graph'!E43 -> 2403 | F75: ='Raw Data - Graph'!F43 -> 2549 | G75: ='Raw Data - Graph'!G43 -> 2437 | H75: ='Raw Data - Graph'!H43 -> 2460 | I75: ='Raw Data - Graph'!I43 -> 0 | J75: ='Raw Data - Graph'!J43 -> 0 | K75: ='Raw Data - Graph'!K43 -> 0 | L75: ='Raw Data - Graph'!L43 -> 0 | M75: ='Raw Data - Graph'!M43 -> 0 | N75: ='Raw Data - Graph'!N43 -> 0 | O75: ='Raw Data - Graph'!O43 -> 0 | P75: =SUM(D75:O75) -> 9849
A77: =C55 -> Shift 1 | B77: ADR | C77: =C67 -> Ken Barton | E77: =IF(E67=0,"",E67/$E$75) -> 0.02 | F77: =IF(F67=0,"",F67/$F$75) -> 0.02 | G77: =IF(G67=0,"",G67/$G$75) -> 0.02 | H77: =IF(H67=0,"",H67/$H$75) -> 0.02
A78: =C57 -> Shift 2 | C78: =C68 -> Ken Barton | E78: =IF(E68=0,"",E68/$E$75) -> 0.6 | F78: =IF(F68=0,"",F68/$F$75) -> 0.58 | G78: =IF(G68=0,"",G68/$G$75) -> 0.51 | H78: =IF(H68=0,"",H68/$H$75) -> 0.64
A79: =C59 -> Shift 3 | C79: =C69 -> Ken Barton | E79: =IF(E69=0,"",E69/$E$75) -> 0.02 | F79: =IF(F69=0,"",F69/$F$75) -> 0.02 | G79: =IF(G69=0,"",G69/$G$75) -> 0.02 | H79: =IF(H69=0,"",H69/$H$75) -> 0.02
A80: =C61 -> Shift 4 | B80: Data feed to the | C80: =C70 -> Ken Barton | E80: =IF(E70=0,"",E70/$E$75) -> 0.18 | F80: =IF(F70=0,"",F70/$F$75) -> 0.2 | G80: =IF(G70=0,"",G70/$G$75) -> 0.2 | H80: =IF(H70=0,"",H70/$H$75) -> 0.19
A81: =C63 -> Shift 5 | B81: chart | C81: =C71 -> Ken Barton | E81: =IF(E71=0,"",E71/$E$75) -> 0.04 | F81: =IF(F71=0,"",F71/$F$75) -> 0.06 | G81: =IF(G71=0,"",G71/$G$75) -> 0.04 | H81: =IF(H71=0,"",H71/$H$75) -> 0.05
C83: Total | E83: =IF(E73=0,"",E73/E75) -> 0.84 | F83: =IF(F73=0,"",F73/F75) -> 0.88 | G83: =IF(G73=0,"",G73/G75) -> 0.79 | H83: =IF(H73=0,"",H73/H75) -> 0.91
E6507: =SUM('Raw Data'!E2:E5521) -> 2369974 | F6507: =SUM('Raw Data'!F2:F5521) -> 2590570 | G6507: =SUM('Raw Data'!G2:G5521) -> 2410304 | H6507: =SUM('Raw Data'!H2:H5521) -> 2436072

Sheet Top 30 (hidden)
A1: Cert | B1: Supervisor | C1: Customer Company name | D1: Feb Rev | E1: Mar Rev | F1: Apr Rev | G1: May Rev | H1: Total | I1: Sales Ranking | J1: Solution Ranking (Solutions / Total Rev)
A2: A | B2: A Smith | C2: Merrill Lynch | D2: 27461.3 | E2: 29659.9 | F2: 28328.3 | G2: 28192.7 | H2: 113642 | I2: 1 | J2: 1
A3: A | B3: A Smith | C3: MEDCO HEALTH SOLUTIONS, INC. | D3: 14374.3 | E3: 21255.8 | F3: 18932.3 | G3: 25569.8 | H3: 80132 | I3: 2 | J3: 2
A4: A | B4: Sam Nancy | C4: Expedia Inc | D4: 127597 | E4: 150764 | F4: 140995 | G4: 153519 | H4: 572875 | I4: 1 | J4: 3
A5: A | B5: A Smith | C5: United Parcel Service | D5: 10398 | E5: 12105.1 | F5: 10311 | G5: 10911 | H5: 43725 | I5: 3 | J5: 4 | O5: General
A6: A | B6: A Smith | C6: Citizens Bank | D6: 9607.9 | E6: 11278.1 | F6: 9652.5 | G6: 10901.9 | H6: 41440 | I6: 4 | J6: 5 | O6: Solution - ALL
A7: A | B7: A Smith | C7: Goldman Sachs Executive Clearing,LP | D7: 10025.2 | E7: 9352.2 | F7: 8272.9 | G7: 9158.8 | H7: 36809 | I7: 5 | J7: 6
A8: A | B8: Sam Nancy | C8: CVS/pharmacy | D8: 79091 | E8: 90259 | F8: 82829 | G8: 92747 | H8: 344926 | I8: 2 | J8: 7
A9: A | B9: A Smith | C9: Fedex Ground | D9: 8702.8 | E9: 9627.8 | F9: 8092.4 | G9: 5935.5 | H9: 32359 | I9: 6 | J9: 8
A10: A | B10: A Smith | C10: US Bank | D10: 6535.3 | E10: 8917.7 | F10: 7178.9 | G10: 6928.2 | H10: 29560 | I10: 7 | J10: 9
A11: A | B11: A Smith | C11: Bank One | D11: 6684 | E11: 7583.7 | F11: 7155.5 | G11: 7969.5 | H11: 29393 | I11: 8 | J11: 10
A12: A | B12: Ken Barton | C12: Ludwig Holding, LTD | D12: 55043 | E12: 16 | F12: 7 | G12: 213853 | H12: 268919 | I12: 1 | J12: 11
A13: A | B13: A Smith | C13: UBS Investment Bank | D13: 5494.8 | E13: 6182.2 | F13: 5383.4 | G13: 5484.4 | H13: 22545 | I13: 9 | J13: 12
A14: A | B14: A Smith | C14: State Street Corporation | D14: 5026.3 | E14: 6255.2 | F14: 4709.3 | G14: 6532.6 | H14: 22523 | I14: 10 | J14: 13
A15: A | B15: Sam Nancy | C15: Aegis Wholesale Corporation | D15: 55815 | E15: 66332 | F15: 56557 | G15: 45021 | H15: 223725 | I15: 3 | J15: 14
A16: A | B16: A Smith | C16: Deutsche Bank | D16: 5629 | E16: 6695.4 | F16: 4733 | G16: 5290.2 | H16: 22348 | J16: 15
A17: A | B17: Sam Nancy | C17: Sam's Club | D17: 45131 | E17: 50869 | F17: 63461 | G17: 62416 | H17: 221877 | I17: 1 | J17: 16
A18: A | B18: A Smith | C18: CH Robinson Inc | D18: 4893 | E18: 5928.5 | F18: 5199.1 | G18: 6050.7 | H18: 22071 | J18: 17
A19: A | B19: A Smith | C19: Aegis Mortgage Corporation | D19: 6166.4 | E19: 5481.8 | F19: 4909.2 | G19: 5342.2 | H19: 21900 | J19: 18
A20: A | B20: A Smith | C20: Goldman Sachs Execution & Clearing,LP. | D20: 4893.1 | E20: 5914.6 | F20: 5186.1 | G20: 5236.9 | H20: 21231 | J20: 19
A21: A | B21: A Smith | C21: JP Morgan | D21: 5169.4 | E21: 6093.7 | F21: 5196.1 | G21: 4682.9 | H21: 21142 | J21: 20
A22: A | B22: Sam Nancy | C22: Wells Fargo Home Mortgage | D22: 52852 | E22: 68817 | F22: 56610 | G22: 26243 | H22: 204522 | I22: 2 | J22: 21
A23: A | B23: Sam Nancy | C23: Wachovia | D23: 44025 | E23: 52992 | F23: 46600 | G23: 51000 | H23: 194617 | I23: 4 | J23: 22
A24: A | B24: A Smith | C24: JP Morgan Investor Services | D24: 4877.9 | E24: 6000.1 | F24: 3343.9 | G24: 3833.8 | H24: 18056 | J24: 23
A25: A | B25: Ken Barton | C25: thebluebook.com | D25: 36902 | E25: 52042 | F25: 48467 | G25: 42021 | H25: 179432 | I25: 2 | J25: 24
A26: A | B26: A Smith | C26: Wells Fargo Bank | D26: 4198 | E26: 4955.4 | F26: 3587.6 | G26: 5195.1 | H26: 17936 | J26: 25
A27: A | B27: A Smith | C27: LABCORP - TELECOM | D27: 3913.2 | E27: 4533 | F27: 3957.5 | G27: 4267.2 | H27: 16671 | J27: 26
A28: A | B28: Sam Nancy | C28: Southwest Airlines | D28: 49613 | E28: 34374 | F28: 31818 | G28: 49329 | H28: 165134 | I28: 5 | J28: 27
A29: A | B29: A Smith | C29: Morgan Stanley | D29: 3293.7 | E29: 4296.8 | F29: 3304.3 | G29: 4944.4 | H29: 15839 | J29: 28
A30: A | B30: Sam Nancy | C30: Palmer, Reifler & Assoc. | D30: 33137 | E30: 46043 | F30: 35842 | G30: 40970 | H30: 155992 | I30: 6 | J30: 29
A31: A | B31: A Smith | C31: Yellow Roadway Technologies | D31: 3547.3 | E31: 4138.4 | F31: 3623.1 | G31: 3996.4 | H31: 15305 | J31: 30
A32: A | B32: Sam Nancy | C32: Credit Suisse | D32: 33640 | E32: 36978 | F32: 34660 | G32: 41812 | H32: 147090 | I32: 7
A33: A | B33: Sam Nancy | C33: Bank of America | D33: 31374 | E33: 38077 | F33: 31876 | G33: 35787 | H33: 137114 | I33: 8
A34: A | B34: Ken Barton | C34: American Mortgage Network | D34: 32984 | E34: 36494 | F34: 30297 | G34: 34588 | H34: 134363 | I34: 3
A35: A | B35: Ken Barton | C35: Pinnacle Systems Inc | D35: 0 | E35: 0 | F35: 0 | G35: 129695 | H35: 129695 | I35: 4
A36: A | B36: Ken Barton | C36: GMAC Mortgage | D36: 32596 | E36: 36166 | F36: 32551 | G36: 28292 | H36: 129605 | I36: 5
A37: A | B37: A Smith | C37: PNC Bank | D37: 3586.8 | E37: 3381.1 | F37: 2984.9 | G37: 2971.6 | H37: 12924
A38: A | B38: A Smith | C38: Barclays Capital | D38: 3340.1 | E38: 3482.4 | F38: 2414.8 | G38: 3094.5 | H38: 12332
A39: A | B39: A Smith | C39: COUNTRYWIDE FUNDING | D39: 2439.8 | E39: 4987.2 | F39: 2761.9 | G39: 1971.4 | H39: 12160
A40: A | B40: A Smith | C40: JP Morgan Chase | D40: 2796.2 | E40: 3295 | F40: 2861.3 | G40: 3071.3 | H40: 12024
A41: A | B41: A Smith | C41: American Home Shield | D41: 2373.7 | E41: 3037.8 | F41: 2985.7 | G41: 3596.4 | H41: 11994
A42: A | B42: Sam Nancy | C42: AT&T/RHI | D42: 27777 | E42: 33087 | F42: 28155 | G42: 29633 | H42: 118652 | I42: 3
A43: A | B43: Sam Nancy | C43: CitiMortgage | D43: 25663 | E43: 31054 | F43: 28514 | G43: 31552 | H43: 116783 | I43: 9
A44: A | B44: Ken Barton | C44: DealerTrack | D44: 20913 | E44: 22874 | F44: 26506 | G44: 46475 | H44: 116768 | I44: 6
A45: A | B45: A Smith | C45: Yellow/Roadway Corporation | D45: 1885.3 | E45: 2251.6 | F45: 2379.5 | G45: 5057.5 | H45: 11574
A46: A | B46: Sam Nancy | C46: Market Data Retrieval | D46: 18291 | E46: 34345 | F46: 26907 | G46: 33502 | H46: 113045 | I46: 4
A47: A | B47: A Smith | C47: Wells Fargo & Co | D47: 3765 | E47: 2606 | F47: 2268 | G47: 2522.6 | H47: 11162
A48: A | B48: Ken Barton | C48: Royal Caribbean International | D48: 22992 | E48: 37340 | F48: 20107 | G48: 28128 | H48: 108567 | I48: 7
A49: A | B49: A Smith | C49: Perot Systems | D49: 4009.6 | E49: 4050.8 | F49: 1978.5 | G49: 735.2 | H49: 10774
A50: A | B50: Sam Nancy | C50: GCI | D50: 0 | E50: 15200 | F50: 89988 | G50: -31 | H50: 105157 | I50: 10
A51: A | B51: Ken Barton | C51: LoanCity | D51: 27454 | E51: 28098 | F51: 24390 | G51: 24854 | H51: 104796 | I51: 8
A52: A | B52: Ken Barton | C52: GreenPoint Mortgage | D52: 21170 | E52: 25900 | F52: 22043 | G52: 31041 | H52: 100154 | I52: 9
A53: A | B53: Ken Barton | C53: Triangle Resource Grp Inc DBA Saf-T-Net | D53: 18310 | E53: 30515 | F53: 21472 | G53: 26053 | H53: 96350 | I53: 10
A54: A | B54: Ken Barton | C54: US Bank Home Mortgage | D54: 21587 | E54: 30383 | F54: 22054 | G54: 22086 | H54: 96110
A55: A | B55: A Smith | C55: J P Morgan Chase | D55: 2103.4 | E55: 2510.2 | F55: 2203.9 | G55: 2497.9 | H55: 9315
A56: A | B56: Ken Barton | C56: Option One Mortgage Corporation | D56: 21937 | E56: 27697 | F56: 14539 | G56: 28316 | H56: 92489
A57: A | B57: Ken Barton | C57: American Trial Lawyer Association | D57: 22844 | E57: 28557 | F57: 18102 | G57: 17541 | H57: 87044
A58: A | B58: A Smith | C58: Perot Systems c/o Alamo | D58: 2574.6 | E58: 3284.3 | F58: 2032.1 | G58: 798.6 | H58: 8690
A59: A | B59: A Smith | C59: Royal Bank Of Canada -Wire Dept | D59: 3909.2 | E59: 3041.9 | F59: 850.9 | G59: 861.6 | H59: 8664
A60: A | B60: A Smith | C60: Citicorp - Salomon Smith Barney | D60: 1523.4 | E60: 2829.1 | F60: 1820 | G60: 1778.4 | H60: 7951
A61: A | B61: Ken Barton | C61: Chapel Funding | D61: 23377 | E61: 26582 | F61: 19700 | G61: 9250 | H61: 78909
A62: A | B62: A Smith | C62: ECN | D62: 1911.9 | E62: 2028.3 | F62: 1800.8 | G62: 2139.1 | H62: 7880
A63: A | B63: Ken Barton | C63: HAWAIIAN AIRLINES | D63: 12981 | E63: 19184 | F63: 23272 | G63: 22058 | H63: 77495
A64: A | B64: Ken Barton | C64: Quiznos Master LLC | D64: 17201 | E64: 21155 | F64: 18641 | G64: 20227 | H64: 77224
A65: A | B65: A Smith | C65: Alliance Capital Management | D65: 2341.4 | E65: 2220.6 | F65: 1382.6 | G65: 1682 | H65: 7627
A66: A | B66: Ken Barton | C66: Heritage Sportswear Inc | D66: 14693 | E66: 11780 | F66: 19863 | G66: 25155 | H66: 71491
A67: A | B67: A Smith | C67: MetLife Auto & Home - INBFAX | D67: 2170.3 | E67: 2383.7 | F67: 1595.9 | G67: 512.6 | H67: 6663
A68: A | B68: Ken Barton | C68: From: NFIB Fax# 800-498-7365 | D68: 16224 | E68: 17236 | F68: 12072 | G68: 18842 | H68: 64374
A69: A | B69: A Smith | C69: Banco Popular De Puerto Rico | D69: 1669.9 | E69: 1710.5 | F69: 1405.9 | G69: 1630.1 | H69: 6416
A70: A | B70: A Smith | C70: T-Chek Systems, Inc. | D70: 1477.9 | E70: 1652.3 | F70: 1541.4 | G70: 1653.9 | H70: 6326
A71: A | B71: A Smith | C71: Mastercard International | D71: 1472 | E71: 1768.3 | F71: 1376 | G71: 1673.7 | H71: 6290
A72: A | B72: Ken Barton | C72: HSBC Mortgage Corporation USA | D72: 17772 | E72: 17972 | F72: 13371 | G72: 13456 | H72: 62571
A73: A | B73: Ken Barton | C73: HomeComings Financial Network | D73: 14075 | E73: 16635 | F73: 15377 | G73: 16331 | H73: 62418
A74: A | B74: Ken Barton | C74: Costa Cruises | D74: 19634 | E74: 16779 | F74: 8170 | G74: 17492 | H74: 62075
A75: A | B75: A Smith | C75: Deutsche Bank Alex Brown | D75: 1493.3 | E75: 1643.4 | F75: 1500.8 | G75: 1558.7 | H75: 6196
A76: A | B76: Ken Barton | C76: College Of American Pathologists | D76: 13377 | E76: 20346 | F76: 14968 | G76: 12731 | H76: 61422
A77: A | B77: A Smith | C77: DB Loan Syndication | D77: 1157.6 | E77: 2196.3 | F77: 1434.8 | G77: 1294.3 | H77: 6083
A78: A | B78: A Smith | C78: Real Magnet | D78: 1678.7 | E78: 1302.1 | F78: 1169.2 | G78: 1927.1 | H78: 6077
A79: A | B79: A Smith | C79: Washington Mutual | D79: 1360.8 | E79: 1796.1 | F79: 1389.5 | G79: 1507.2 | H79: 6054
A80: A | B80: A Smith | C80: Abnamro Service Company | D80: 1318.9 | E80: 1591.3 | F80: 1425.4 | G80: 1664 | H80: 6000
A81: A | B81: Ken Barton | C81: Bayview Financial | D81: 11798 | E81: 16513 | F81: 15993 | G81: 15369 | H81: 59673
A82: A | B82: A Smith | C82: TD Banknorth, N. A. | D82: 1222.6 | E82: 1529.4 | F82: 1462.1 | G82: 1646.4 | H82: 5861
A83: A | B83: Ken Barton | C83: Direct Marketing Results | D83: 3793 | E83: 23533 | F83: 18009 | G83: 12945 | H83: 58280
A84: A | B84: A Smith | C84: Bank Of Montreal | D84: 1431.4 | E84: 1569.7 | F84: 1394.3 | G84: 1431 | H84: 5826
A85: A | B85: A Smith | C85: Mellon Trust | D85: 1287.3 | E85: 1554.6 | F85: 1413.1 | G85: 1454.3 | H85: 5709
A86: A | B86: A Smith | C86: Investors Bank and Trust | D86: 1261.1 | E86: 1730.2 | F86: 1226.4 | G86: 1423.5 | H86: 5641
A87: A | B87: Ken Barton | C87: Fimat Facilities Management | D87: 12868 | E87: 14808 | F87: 14503 | G87: 14195 | H87: 56374
A88: A | B88: A Smith | C88: The Bank Of Nova Scotia | D88: 1310.5 | E88: 1391.9 | F88: 1416.6 | G88: 1482.5 | H88: 5602
A89: A | B89: A Smith | C89: Vigo International | D89: 1600.7 | E89: 1391.9 | F89: 1239.1 | G89: 1305.5 | H89: 5537
A90: A | B90: Ken Barton | C90: Everglades Direct | D90: 12609 | E90: 9915 | F90: 19134 | G90: 13624 | H90: 55282
A91: A | B91: A Smith | C91: Caterpillar Inc. | D91: 1344.8 | E91: 1373.9 | F91: 1407 | G91: 1337.9 | H91: 5464
A92: A | B92: A Smith | C92: Metlife Auto & Home | D92: 710.6 | E92: 843.8 | F92: 1381.8 | G92: 2493.9 | H92: 5430
A93: A | B93: A Smith | C93: Medialink-USNEWSWIRE | D93: 1097.2 | E93: 1578.3 | F93: 1178.2 | G93: 1521.5 | H93: 5375
A94: A | B94: Ken Barton | C94: Fimat | D94: 12631 | E94: 14282 | F94: 13279 | G94: 13309 | H94: 53501
A95: A | B95: Ken Barton | C95: Contractors Register Inc | D95: 1125 | E95: 19485 | F95: 32366 | G95: 230 | H95: 53206
A96: A | B96: Ken Barton | C96: Health Net Inc | D96: 10890 | E96: 10446 | F96: 19226 | G96: 11706 | H96: 52268
A97: A | B97: Ken Barton | C97: Merchandise Mart Properties Inc | D97: 4050 | E97: 9662 | F97: 21989 | G97: 16385 | H97: 52086
A98: A | B98: Ken Barton | C98: National City Bank | D98: 11573 | E98: 13759 | F98: 14233 | G98: 12230 | H98: 51795
A99: A | B99: Ken Barton | C99: Wells Fargo Auto Finance | D99: 24820 | E99: 5448 | F99: 5965 | G99: 15410 | H99: 51643
A100: A | B100: A Smith | C100: UBS Warburg | D100: 1079.7 | E100: 1499.5 | F100: 1238.5 | G100: 1252.2 | H100: 5070
A101: A | B101: A Smith | C101: JP Morgan - Bader | D101: 1034.7 | E101: 1195.6 | F101: 1476.5 | G101: 1105.7 | H101: 4813
A102: A | B102: Steve Wynn | C102: Chase Automotive Finance | D102: 14812 | E102: 13841 | F102: 9470 | G102: 9943 | H102: 48066 | I102: 1
A103: A | B103: A Smith | C103: COUNTRYWIDE HOME LOANS | D103: 1063.6 | E103: 1853.5 | F103: 1047.6 | G103: 805.2 | H103: 4770
A104: A | B104: Ken Barton | C104: Cendant Corporate | D104: 11411 | E104: 9282 | F104: 13842 | G104: 12882 | H104: 47417
A105: A | B105: Ken Barton | C105: Merchant Circle | D105: 231 | E105: 12714 | F105: 5077 | G105: 29281 | H105: 47303
A106: A | B106: Ken Barton | C106: First Horizon Home Loan Corporation | D106: 12099 | E106: 10736 | F106: 11996 | G106: 12121 | H106: 46952
A107: A | B107: A Smith | C107: Alliance Bernstein | D107: 912.9 | E107: 1144.5 | F107: 1005.5 | G107: 1609.9 | H107: 4673
A108: A | B108: A Smith | C108: Bank Of Montreal | D108: 985.8 | E108: 1620.2 | F108: 896.4 | G108: 1154.9 | H108: 4657
A109: A | B109: Ken Barton | C109: Progressive Business Publications | D109: 20556 | E109: 11703 | F109: 5176 | G109: 8999 | H109: 46434
A110: A | B110: Ken Barton | C110: Crystal Cruises | D110: 10478 | E110: 15816 | F110: 11035 | G110: 9009 | H110: 46338
A111: A | B111: Ken Barton | C111: InsWeb | D111: 8639 | E111: 8996 | F111: 9319 | G111: 19049 | H111: 46003
A112: A | B112: A Smith | C112: Societe Generale | D112: 1564.2 | E112: 1070.8 | F112: 930.7 | G112: 1032.6 | H112: 4598
A113: A | B113: Ken Barton | C113: MEDIAMAP - PRODUCTION ACCT. | D113: 9470 | E113: 11158 | F113: 11992 | G113: 13089 | H113: 45709
A114: A | B114: Ken Barton | C114: Primezone Media Network Inc | D114: 12851 | E114: 9896 | F114: 11361 | G114: 11087 | H114: 45195
A115: A | B115: Sam Nancy | C115: OAC LLC. dba OCMUSA | D115: 9507 | E115: 11550 | F115: 11503 | G115: 12403 | H115: 44963
A116: A | B116: A Smith | C116: Sovereign Bank -New England | D116: 1057.1 | E116: 1241.5 | F116: 1054.8 | G116: 1102 | H116: 4455
A117: A | B117: A Smith | C117: Wells Fargo | D117: 1503.6 | E117: 1402.6 | F117: 826.1 | G117: 717.7 | H117: 4450
A118: A | B118: Ken Barton | C118: GMAC Mortgage -Communications Department | D118: 10903 | E118: 8559 | F118: 13576 | G118: 11040 | H118: 44078
A119: A | B119: Ken Barton | C119: CANON COMMUNICATIONS LLC | D119: 10292 | E119: 8770 | F119: 12698 | G119: 12287 | H119: 44047
A120: A | B120: A Smith | C120: RBC Dain Rauscher | D120: 1064.8 | E120: 1166.6 | F120: 1008.7 | G120: 1120.9 | H120: 4361
A121: A | B121: Ken Barton | C121: ICBA | D121: 14305 | E121: 16311 | F121: 6213 | G121: 6463 | H121: 43292
A122: A | B122: Ken Barton | C122: Anda Inc | D122: 9405 | E122: 11319 | F122: 8578 | G122: 13227 | H122: 42529
A123: A | B123: A Smith | C123: Citigroup Global Markets Inc. | D123: 999.8 | E123: 1121.3 | F123: 970.7 | G123: 1121.3 | H123: 4213
A124: A | B124: A Smith | C124: M&I Data Services | D124: 950.7 | E124: 1175.2 | F124: 1007.8 | G124: 1059.6 | H124: 4193
A125: A | B125: A Smith | C125: J.P. Morgan Chase Global Remittance | D125: 780.3 | E125: 1138.8 | F125: 1117.2 | G125: 1129.5 | H125: 4166
A126: A | B126: Sam Nancy | C126: Collection Information Bureau Inc. | D126: 8383 | E126: 11883 | F126: 9707 | G126: 11169 | H126: 41142
A127: A | B127: A Smith | C127: McKenzie Scott Partners | D127: 1134 | E127: 990.5 | F127: 921.5 | G127: 1059 | H127: 4105
A128: A | B128: A Smith | C128: Penske Systems | D128: 1071.4 | E128: 1100.9 | F128: 1007.4 | G128: 924.8 | H128: 4105
A129: A | B129: A Smith | C129: Citibank - Derivatives/Structured Prod. | D129: 946.1 | E129: 1283.9 | F129: 866.3 | G129: 991.8 | H129: 4088
A130: A | B130: Ken Barton | C130: US Bank Consumer Finance | D130: 14129 | E130: 9293 | F130: 8865 | G130: 8192 | H130: 40479
A131: A | B131: A Smith | C131: JP Morgan Chase Global Remittance | D131: 877.4 | E131: 1048.8 | F131: 971.8 | G131: 1129.3 | H131: 4027
A132: A | B132: Ken Barton | C132: AMPRO MORTGAGE | D132: 7692 | E132: 11221 | F132: 9164 | G132: 11310 | H132: 39387
A133: A | B133: Sam Nancy | C133: BUSINESS WIRE-SAN FRANCISCO | D133: 9809 | E133: 9456 | F133: 9524 | G133: 9788 | H133: 38577
A134: A | B134: Sam Nancy | C134: Mastec North America/Advanced Tech | D134: 11009 | E134: 9046 | F134: 9089 | G134: 9377 | H134: 38521
A135: A | B135: A Smith | C135: ESI Securities | D135: 836.7 | E135: 1013.5 | F135: 815.6 | G135: 1181.3 | H135: 3847
A136: A | B136: A Smith | C136: Yellow Roadway | D136: 782.5 | E136: 1019.9 | F136: 976.1 | G136: 1025.6 | H136: 3804
A137: A | B137: A Smith | C137: Mediacom | D137: 921.8 | E137: 1205.5 | F137: 755.1 | G137: 886.3 | H137: 3769
A138: A | B138: Sam Nancy | C138: OTX Research | D138: 6913 | E138: 11576 | F138: 10306 | G138: 8853 | H138: 37648
A139: A | B139: Sam Nancy | C139: NetBank | D139: 10637 | E139: 12364 | F139: 8215 | G139: 5919 | H139: 37135
A140: A | B140: Sam Nancy | C140: Sun Trust Banks, Inc. | D140: 8161 | E140: 10211 | F140: 9227 | G140: 9277 | H140: 36876
A141: A | B141: Sam Nancy | D141: 18931 | E141: 17939 | F141: -150 | G141: 0 | H141: 36720
A142: A | B142: Ken Barton | C142: American Home Mortgage | D142: 8135 | E142: 10410 | F142: 8935 | G142: 9165 | H142: 36645
A143: A | B143: A Smith | C143: ElectroMotive Diesel, Inc. | D143: 778.4 | E143: 804.7 | F143: 994.8 | G143: 1042.8 | H143: 3621
A144: A | B144: Sam Nancy | C144: Directv | D144: 12122 | E144: 10652 | F144: 5800 | G144: 7575 | H144: 36149
A145: A | B145: Sam Nancy | C145: Citibank | D145: 9233 | E145: 10165 | F145: 8338 | G145: 8391 | H145: 36127
A146: A | B146: A Smith | C146: Valley National Bank | D146: 899.2 | E146: 925.4 | F146: 899.5 | G146: 857.7 | H146: 3582
A147: A | B147: Ken Barton | C147: National Bankers Group Inc | D147: 6014 | E147: 8603 | F147: 12221 | G147: 8962 | H147: 35800
A148: A | B148: A Smith | C148: Makita USA | D148: 814.4 | E148: 932.2 | F148: 1004.5 | G148: 781 | H148: 3532
A149: A | B149: Ken Barton | C149: J&L Industrial Supply | D149: 9025 | E149: 7600 | F149: 9330 | G149: 9293 | H149: 35248
A150: A | B150: Ken Barton | C150: InterCall Inc | D150: 11769 | E150: 8490 | F150: 2708 | G150: 12246 | H150: 35213
A151: A | B151: Sam Nancy | C151: Prudential Securities | D151: 9695 | E151: 9853 | F151: 8908 | G151: 6636 | H151: 35092
A152: A | B152: Ken Barton | C152: Quality Home Loans | D152: 6688 | E152: 10125 | F152: 9813 | G152: 8431 | H152: 35057
A153: A | B153: Ken Barton | C153: Wiltel Vyvx ADs | D153: 8287 | E153: 10450 | F153: 6661 | G153: 9204 | H153: 34602
A154: A | B154: Ken Barton | C154: ECI Conference Call Services LLC | D154: 7914 | E154: 4978 | F154: 9379 | G154: 11864 | H154: 34135
A155: A | B155: Ken Barton | C155: First Horizon Wholesale | D155: 8202 | E155: 8908 | F155: 8348 | G155: 8644 | H155: 34102
A156: A | B156: A Smith | C156: CardioNet | D156: 811.2 | E156: 939.8 | F156: 817.3 | G156: 818.4 | H156: 3387
A157: A | B157: Ken Barton | C157: First Horizon Home Loan | D157: 8656 | E157: 6974 | F157: 8736 | G157: 9437 | H157: 33803
A158: A | B158: Sam Nancy | C158: Fidelity Investments | D158: 11226 | E158: 10003 | F158: 7217 | G158: 5339 | H158: 33785
A159: A | B159: Sam Nancy | C159: WILMINGTON FINANCE INC | D159: 3260 | E159: 17071 | F159: 5652 | G159: 7712 | H159: 33695
A160: A | B160: Ken Barton | C160: National City Corporation | D160: 8132 | E160: 9046 | F160: 7864 | G160: 8578 | H160: 33620
A161: A | B161: Ken Barton | C161: TargetRx Inc | D161: 4688 | E161: 11369 | F161: 9039 | G161: 8418 | H161: 33514
A162: A | B162: A Smith | C162: Fox Broadcasting Company | D162: 605 | E162: 965.1 | F162: 796.3 | G162: 970.8 | H162: 3337
A163: A | B163: Ken Barton | C163: Taylor, Bean & Whitaker Mortgage | D163: 8041 | E163: 9613 | F163: 7862 | G163: 7631 | H163: 33147
A164: A | B164: A Smith | C164: Harris N.A. | D164: 775.2 | E164: 914.4 | F164: 810.5 | G164: 796.1 | H164: 3296
A165: A | B165: A Smith | C165: MELLON FINANCIAL CORPORATION | D165: 756.3 | E165: 889.9 | F165: 801 | G165: 833.3 | H165: 3281
A166: A | B166: Sam Nancy | C166: Banc of America Securities | D166: 355 | E166: 1031 | F166: 13366 | G166: 17771 | H166: 32523
A167: A | B167: Sam Nancy | C167: BUSINESS WIRE-PHILADELPHIA | D167: 8081 | E167: 8558 | F167: 7720 | G167: 8026 | H167: 32385
A168: A | B168: Sam Nancy | C168: Citi Group - Mortgage Broker | D168: 8718 | E168: 8354 | F168: 4737 | G168: 10265 | H168: 32074
A169: A | B169: Ken Barton | C169: Direct Medical Data | D169: 9100 | E169: 6347 | F169: 9628 | G169: 6893 | H169: 31968
A170: A | B170: Sam Nancy | C170: Direct Medical Data | D170: 9100 | E170: 6347 | F170: 9628 | G170: 6893 | H170: 31968
A171: A | B171: A Smith | C171: Ingersoll Rand Company | D171: 1199.8 | E171: 714.6 | F171: 596.8 | G171: 680.7 | H171: 3192
A172: A | B172: A Smith | C172: Bancopopular America | D172: 742.3 | E172: 882.6 | F172: 780.5 | G172: 785.9 | H172: 3191
A173: A | B173: A Smith | C173: Line1 Communications Inc | D173: 733.7 | E173: 889.8 | F173: 778.6 | G173: 764.3 | H173: 3166
A174: A | B174: A Smith | C174: Citigroup | D174: 597.4 | E174: 782.6 | F174: 842.9 | G174: 925.1 | H174: 3148
A175: A | B175: Ken Barton | C175: Fair Isaac Corporation | D175: 8888 | E175: 6936 | F175: 7097 | G175: 8465 | H175: 31386
A176: A | B176: A Smith | C176: COUNTRYWIDE FUNDING - REGION 91 | D176: 846.5 | E176: 1032.2 | F176: 610.4 | G176: 616.6 | H176: 3106
A177: A | B177: Ken Barton | C177: NADA -National Automobile Dealers Assoc | D177: 7662 | E177: 9480 | F177: 5696 | G177: 7597 | H177: 30435
A178: A | B178: Ken Barton | C178: Bacons Information Inc | D178: 7449 | E178: 8506 | F178: 5939 | G178: 8256 | H178: 30150
A179: A | B179: Sam Nancy | C179: Wilmington Finance, Inc | D179: 5438 | E179: 7413 | F179: 7681 | G179: 9571 | H179: 30103
A180: A | B180: Sam Nancy | C180: CITI HOME EQUITY | D180: 2441 | E180: 5695 | F180: 4848 | G180: 17118 | H180: 30102
A181: A | B181: Sam Nancy | C181: BUSINESS WIRE-CLEVELAND | D181: 6629 | E181: 7372 | F181: 8162 | G181: 7695 | H181: 29858
A182: A | B182: Sam Nancy | C182: BNP Media -Stone World Events | D182: 15403 | E182: 3662 | F182: 7516 | G182: 2975 | H182: 29556
A183: A | B183: A Smith | C183: Regions Financial Corporation | D183: 712.8 | E183: 834.7 | F183: 697.1 | G183: 706.3 | H183: 2951
A184: A | B184: Ken Barton | C184: GS1US-UNSPCS | D184: 0 | E184: 29109 | F184: 0 | G184: 197 | H184: 29306
A185: A | B185: A Smith | C185: Keycorp Services Corporation | D185: 704 | E185: 782.3 | F185: 705.3 | G185: 705.6 | H185: 2897
A186: A | B186: A Smith | C186: COUNTRYWIDE 918 | D186: 869.3 | E186: 1077.7 | F186: 477.1 | G186: 472.4 | H186: 2897
A187: A | B187: Ken Barton | C187: Alimed, Inc. | D187: 7380 | E187: 7423 | F187: 5480 | G187: 8667 | H187: 28950
A188: A | B188: Ken Barton | C188: Chase Manhattan Mortgage Corp | D188: 6488 | E188: 8708 | F188: 7287 | G188: 6447 | H188: 28930
A189: A | B189: Sam Nancy | C189: Qbd3 | D189: 0 | E189: 61179 | F189: -32304 | G189: 0 | H189: 28875
A190: A | B190: Ken Barton | C190: Fimat Australia | D190: 6643 | E190: 7297 | F190: 6871 | G190: 8029 | H190: 28840
A191: A | B191: A Smith | C191: American Century Service Corporation | D191: 652.4 | E191: 826.7 | F191: 709 | G191: 667.7 | H191: 2856
A192: A | B192: Ken Barton | C192: Advanstar Communications | D192: 13131 | E192: -1307 | F192: 11275 | G192: 5137 | H192: 28236
A193: A | B193: Sam Nancy | C193: Deutsche Bank | D193: 8326 | E193: 7297 | F193: 6449 | G193: 5987 | H193: 28059
A194: A | B194: Ken Barton | C194: Antares Information Technologies, Inc | D194: 75 | E194: 75 | F194: 75 | G194: 27802 | H194: 28027
A195: A | B195: Ken Barton | C195: ABA-CLE | D195: 7019 | E195: 6398 | F195: 8758 | G195: 5724 | H195: 27899
A196: A | B196: Ken Barton | C196: Alliance Bancorp - Northern CA | D196: 4097 | E196: 7344 | F196: 7891 | G196: 7940 | H196: 27272
A197: A | B197: Ken Barton | C197: Hodas and Associates | D197: 1636 | E197: 16337 | F197: 7286 | G197: 1976 | H197: 27235
A198: A | B198: Sam Nancy | C198: DHL | D198: 5930 | E198: 7133 | F198: 6726 | G198: 7352 | H198: 27141
A199: A | B199: Sam Nancy | C199: DirecTECH Holding Inc | D199: 11179 | E199: 3298 | F199: 6165 | G199: 6433 | H199: 27075
A200: A | B200: Sam Nancy | C200: Foxs | D200: 2777 | E200: 15255 | F200: 8572 | G200: 376 | H200: 26980
... 1006 more rows

Sheet Raw Data (hidden)
A1: Cert | B1: Shift | C1: Supervisor | D1: Customer Company name | E1: Feb Rev | F1: Mar Rev | G1: Apr Rev | H1: May Rev | I1: Feb Vol | J1: Mar Vol | K1: Apr Vol | L1: May Vol
A2: B | B2: Shift 4 | C2: Steve Wynn | D2: Automated Retail Systems | E2: 0 | F2: 0 | G2: 0 | H2: 0 | I2: 0 | J2: 5 | K2: 0 | L2: 0
A3: B | B3: Shift 4 | C3: Steve Wynn | D3: DCI Group. LLC | E3: 0 | F3: 0 | G3: 0 | H3: 0 | I3: 5585 | J3: 33444 | K3: 14803 | L3: 29112
A4: B | B4: Shift 4 | C4: Steve Wynn | D4: Allianz Global Investors | E4: 301 | F4: 513 | G4: 1425 | H4: 1222 | I4: 4388 | J4: 9121 | K4: 25391 | L4: 20971
A5: B | B5: Shift 4 | C5: Steve Wynn | D5: Agilysys | E5: 0 | F5: 90 | G5: 30 | H5: 72 | I5: 3 | J5: 1729 | K5: 579 | L5: 1363
A6: B | B6: Shift 4 | C6: Steve Wynn | D6: Assoc for Supervision & Curriculum Dev | E6: 586 | F6: 1536 | G6: 4158 | H6: 1395 | I6: 12403 | J6: 32358 | K6: 85627 | L6: 28676
A7: B | B7: Shift 4 | C7: Steve Wynn | D7: BZ Media - Software Development Times | E7: 2096 | F7: 3724 | G7: 2540 | H7: 3123 | I7: 1554038 | J7: 2878146 | K7: 1936974 | L7: 2376689
A8: B | B8: Shift 4 | C8: Steve Wynn | D8: Fifth Third Bank Marketing CM-Lea Ann | E8: 0 | F8: 0 | G8: 0 | H8: 208 | I8: 0 | J8: 0 | K8: 0 | L8: 5066
A9: B | B9: Shift 4 | C9: Steve Wynn | D9: John Hancock Life Insurance | E9: 0 | F9: 0 | G9: 0 | H9: 3 | I9: 0 | J9: 0 | K9: 0 | L9: 4336
A10: B | B10: Shift 4 | C10: Steve Wynn | D10: Minnesota Department Of Public Safety | E10: 5 | F10: 0 | G10: 0 | H10: 0 | I10: 269 | J10: 0 | K10: 0 | L10: 0
A11: B | B11: Shift 4 | C11: Steve Wynn | D11: Monster Government Solutions | E11: 3 | F11: 61 | G11: 39 | H11: 8 | I11: 68 | J11: 1562 | K11: 975 | L11: 215
A12: B | B12: Shift 4 | C12: Steve Wynn | D12: Pebble Beach Company | E12: 696 | F12: 677 | G12: 700 | H12: 837 | I12: 40223 | J12: 36243 | K12: 41148 | L12: 44975
A13: B | B13: Shift 4 | C13: Steve Wynn | D13: Popular Club | E13: 1961 | F13: 9946 | G13: 5058 | H13: 925 | I13: 220231 | J13: 270467 | K13: 170670 | L13: 273972
A14: B | B14: Shift 4 | C14: Steve Wynn | D14: The Borgata Hotel Casino & Spa | E14: 8461 | F14: 15354 | G14: 2669 | H14: -11163 | I14: 200986 | J14: 364708 | K14: 253575 | L14: 860214
A15: B | B15: Shift 4 | C15: Steve Wynn | D15: The Wall Street Journal Online | E15: 542 | F15: 395 | G15: 286 | H15: 202 | I15: 35599 | J15: 25836 | K15: 18790 | L15: 13154
A16: B | B16: Shift 4 | C16: Steve Wynn | D16: TMP Worldwide | E16: 4324 | F16: 74 | G16: 1543 | H16: 68 | I16: 92752 | J16: 1544 | K16: 32817 | L16: 1390
A17: B | B17: Shift 4 | C17: Steve Wynn | D17: Vacation.com | E17: 6494 | F17: 5680 | G17: 4683 | H17: 4837 | I17: 1362639 | J17: 1491812 | K17: 1336034 | L17: 1290959
A18: B | B18: Shift 4 | C18: Steve Wynn | D18: Vacation.com -Canada | E18: 135 | F18: 82 | G18: 50 | H18: 106 | I18: 53965 | J18: 23354 | K18: 24491 | L18: 37025
A19: B | B19: Shift 4 | C19: Steve Wynn | D19: WebMD Expressbill | E19: 0 | F19: 0 | G19: 1 | H19: 0 | I19: 0 | J19: 0 | K19: 14 | L19: 0
A20: B | B20: Shift 4 | C20: Steve Wynn | D20: WILMINGTON FINANCE INC | E20: 2707 | F20: 8308 | G20: 4008 | H20: 5170 | I20: 38672 | J20: 118689 | K20: 57259 | L20: 73856
A21: B | B21: Shift 5 | C21: A Smith | D21: B & B Collections Inc. | E21: 2063 | F21: 1732 | G21: 1821 | H21: 2094 | I21: 13972 | J21: 11554 | K21: 12212 | L21: 14258
A22: B | B22: Shift 5 | C22: A Smith | D22: Connect Television Inc. | E22: 0 | F22: 0 | G22: 0 | H22: 0 | I22: 2703 | J22: 4689 | K22: 7186 | L22: 7522
A23: B | B23: Shift 5 | C23: A Smith | D23: DirecTECH Holding Inc | E23: 0 | F23: 0 | G23: 0 | H23: 0 | I23: 68206 | J23: 20170 | K23: 37055 | L23: 38499
A24: B | B24: Shift 5 | C24: A Smith | D24: G.C.R & Associates | E24: 0 | F24: 3372 | G24: 8783 | H24: 11241 | I24: 0 | J24: 73245 | K24: 184035 | L24: 236047
A25: B | B25: Shift 5 | C25: A Smith | D25: Health Sciences Association | E25: 0 | F25: 1369 | G25: 0 | H25: 0 | I25: 0 | J25: 5295 | K25: 0 | L25: 0
A26: B | B26: Shift 5 | C26: A Smith | D26: Labor Ready | E26: 718 | F26: 814 | G26: 1864 | H26: 3578 | I26: 8597 | J26: 9626 | K26: 21114 | L26: 40581
A27: B | B27: Shift 5 | C27: A Smith | D27: Mastec North America/Advanced Tech | E27: 0 | F27: 0 | G27: 0 | H27: 0 | I27: 95387 | J27: 78680 | K27: 79666 | L27: 82500
A28: B | B28: Shift 5 | C28: A Smith | D28: NorthStar Telesolutions | E28: 0 | F28: 36 | G28: 28 | H28: 40 | I28: 0 | J28: 305 | K28: 272 | L28: 380
A29: B | B29: Shift 5 | C29: A Smith | D29: Nurses PRN Acquisition Corp | E29: 3249 | F29: 7083 | G29: 1203 | H29: 687 | I29: 24688 | J29: 54376 | K29: 8807 | L29: 6444
A30: B | B30: Shift 5 | C30: A Smith | D30: Reno Associates Inc | E30: 6606 | F30: 0 | G30: 795 | H30: 2258 | I30: 110537 | J30: 0 | K30: 11311 | L30: 32912
A31: B | B31: Shift 5 | C31: A Smith | D31: Ron's TV | E31: 0 | F31: 0 | G31: 0 | H31: 0 | I31: 21827 | J31: 19025 | K31: 7167 | L31: 26380
A32: B | B32: Shift 5 | C32: A Smith | D32: Vancouver Elementary School Teachers Ass | E32: 0 | F32: 0 | G32: 0 | H32: 5 | I32: 0 | J32: 0 | K32: 0 | L32: 31
A33: B | B33: Shift 5 | C33: A Smith | D33: Agilysys | E33: 8 | F33: 0 | G33: 0 | H33: 0 | I33: 61 | J33: 0 | K33: 0 | L33: 0
A34: B | B34: Shift 5 | C34: A Smith | D34: Equifirst Corporation | E34: 1709 | F34: 1627 | G34: 2081 | H34: 2924 | I34: 10756 | J34: 10378 | K34: 13413 | L34: 19261
A35: B | B35: Shift 5 | C35: A Smith | D35: Minnesota Department Of Public Safety | E35: 7 | F35: 0 | G35: 0 | H35: 0 | I35: 32 | J35: 0 | K35: 0 | L35: 0
A36: B | B36: Shift 5 | C36: A Smith | D36: Popular Club | E36: 2841 | F36: 0 | G36: 2014 | H36: 0 | I36: 27645 | J36: 0 | K36: 21513 | L36: 0
A37: B | B37: Shift 1 | C37: A Smith | D37: Automated Retail Systems | E37: 1 | F37: 0 | G37: 0 | H37: 0 | I37: 4 | J37: 2 | K37: 0 | L37: 1
A38: B | B38: Shift 1 | C38: A Smith | D38: B & B Collections Inc. | E38: 21 | F38: 22 | G38: 18 | H38: 21 | I38: 137 | J38: 119 | K38: 123 | L38: 141
A39: B | B39: Shift 1 | C39: A Smith | D39: Connect Television Inc. | E39: 0 | F39: 0 | G39: 0 | H39: 0 | I39: 835 | J39: 919 | K39: 981 | L39: 1013
A40: B | B40: Shift 1 | C40: A Smith | D40: CSC Publishing | E40: 1 | F40: 3 | G40: 0 | H40: 0 | I40: 8 | J40: 19 | K40: 0 | L40: 0
A41: B | B41: Shift 1 | C41: A Smith | D41: DCI Group LLC | E41: 0 | F41: 0 | G41: 0 | H41: 0 | I41: 89 | J41: 106 | K41: 45 | L41: 54
A42: B | B42: Shift 1 | C42: A Smith | D42: DCI Group. LLC | E42: 0 | F42: 0 | G42: 0 | H42: 0 | I42: 85 | J42: 101 | K42: 127 | L42: 171
A43: B | B43: Shift 1 | C43: A Smith | D43: DirecTECH Holding Inc | E43: 0 | F43: 0 | G43: 0 | H43: 0 | I43: 943 | J43: 432 | K43: 937 | L43: 1009
A44: B | B44: Shift 1 | C44: A Smith | D44: DK Publishing | E44: 0 | F44: 1 | G44: 0 | H44: 0 | I44: 0 | J44: 10 | K44: 0 | L44: 0
A45: B | B45: Shift 1 | C45: A Smith | D45: G.C.R & Associates | E45: 0 | F45: 6 | G45: 0 | H45: 696 | I45: 0 | J45: 63 | K45: 152 | L45: 2725
A46: B | B46: Shift 1 | C46: A Smith | D46: Health Sciences Association | E46: 1187 | F46: 378 | G46: 0 | H46: 62 | I46: 1168 | J46: 600 | K46: 2 | L46: 51
A47: B | B47: Shift 1 | C47: A Smith | D47: Intl Strategy & Investment Group Inc | E47: 0 | F47: 0 | G47: 0 | H47: 0 | I47: 2 | J47: 5 | K47: 2 | L47: 3
A48: B | B48: Shift 1 | C48: A Smith | D48: Labor Ready | E48: 160 | F48: 102 | G48: 217 | H48: 524 | I48: 71 | J48: 167 | K48: 361 | L48: 609
A49: B | B49: Shift 1 | C49: A Smith | D49: Mastec North America/Advanced Tech | E49: 0 | F49: 0 | G49: 0 | H49: 0 | I49: 113 | J49: 125 | K49: 164 | L49: 142
A50: B | B50: Shift 1 | C50: A Smith | D50: NorthStar Telesolutions | E50: 0 | F50: 40 | G50: 49 | H50: 36 | I50: 0 | J50: 11 | K50: 4 | L50: 4
A51: B | B51: Shift 1 | C51: A Smith | D51: Nurses PRN Acquisition Corp | E51: 51 | F51: 140 | G51: 66 | H51: 37 | I51: 25 | J51: 96 | K51: 30 | L51: 15
A52: B | B52: Shift 1 | C52: A Smith | D52: Reno Associates Inc | E52: 17 | F52: 0 | G52: 1 | H52: 3 | I52: 351 | J52: 0 | K52: 23 | L52: 85
A53: B | B53: Shift 1 | C53: A Smith | D53: Ron's TV | E53: 0 | F53: 0 | G53: 0 | H53: 0 | I53: 389 | J53: 374 | K53: 285 | L53: 417
A54: B | B54: Shift 1 | C54: A Smith | D54: Vancouver Elementary School Teachers Ass | E54: 0 | F54: 0 | G54: 0 | H54: 1 | I54: 0 | J54: 0 | K54: 0 | L54: 2
A55: B | B55: Shift 1 | C55: A Smith | D55: Allianz Global Investors | E55: -251 | F55: 269 | G55: 269 | H55: 269 | I55: 31 | J55: 29 | K55: 31 | L55: 30
A56: B | B56: Shift 1 | C56: A Smith | D56: Abercrombie & Fitch | E56: 5 | F56: 5 | G56: 5 | H56: 5 | I56: 1 | J56: 1 | K56: 1 | L56: 1
A57: B | B57: Shift 1 | C57: A Smith | D57: Agilysys | E57: 70 | F57: 0 | G57: 47 | H57: 7 | I57: 3 | J57: 0 | K57: 1 | L57: 1
A58: B | B58: Shift 1 | C58: A Smith | D58: Assoc for Supervision & Curriculum Dev | E58: 1000 | F58: 1000 | G58: 1000 | H58: 1000 | I58: 1 | J58: 1 | K58: 1 | L58: 1
A59: B | B59: Shift 1 | C59: A Smith | D59: BZ Media - Software Development Times | E59: 1097 | F59: 89 | G59: 702 | H59: 131 | I59: 30 | J59: 37 | K59: 27 | L59: 33
A60: B | B60: Shift 1 | C60: A Smith | D60: Chevy Chase Bank | E60: 1665 | F60: 2185 | G60: 2013 | H60: 2289 | I60: 2898 | J60: 3637 | K60: 3532 | L60: 4142
A61: B | B61: Shift 1 | C61: A Smith | D61: CHEVY CHASE BANK - WHOLESALE | E61: 9350 | F61: 12632 | G61: 10547 | H61: 13018 | I61: 76679 | J61: 93581 | K61: 78811 | L61: 98701
A62: B | B62: Shift 1 | C62: A Smith | D62: EquiFirst | E62: 2 | F62: 2 | G62: 2 | H62: 53 | I62: 15 | J62: 13 | K62: 14 | L62: 21
A63: B | B63: Shift 1 | C63: A Smith | D63: Equifirst Corporation | E63: 0 | F63: 0 | G63: 0 | H63: 0 | I63: 10 | J63: 13 | K63: 25 | L63: 26
A64: B | B64: Shift 1 | C64: A Smith | D64: Fabbrica Consulting Inc DBA SalesRAP.com | E64: 0 | F64: 0 | G64: 0 | H64: -625 | I64: 0 | J64: 0 | K64: 0 | L64: 1
A65: B | B65: Shift 1 | C65: A Smith | D65: Fifth Third Bank Marketing CM-Lea Ann | E65: 0 | F65: 0 | G65: 0 | H65: 8825 | I65: 0 | J65: 0 | K65: 0 | L65: 3
A66: B | B66: Shift 1 | C66: A Smith | D66: John Hancock Life Insurance | E66: 0 | F66: 0 | G66: -30 | H66: 25 | I66: 0 | J66: 0 | K66: 1 | L66: 1
A67: B | B67: Shift 1 | C67: A Smith | D67: Minnesota Department Of Public Safety | E67: 323 | F67: 433 | G67: 633 | H67: 338 | I67: 2624 | J67: 6117 | K67: 5853 | L67: 5292
A68: B | B68: Shift 1 | C68: A Smith | D68: Monster Government Solutions | E68: 750 | F68: 764 | G68: 786 | H68: 817 | I68: 1 | J68: 2 | K68: 2 | L68: 2
A69: B | B69: Shift 1 | C69: A Smith | D69: NetBank | E69: 1522 | F69: 935 | G69: 959 | H69: 902 | I69: 77667 | J69: 49854 | K69: 48372 | L69: 51295
A70: B | B70: Shift 1 | C70: A Smith | D70: Pebble Beach Company | E70: 400 | F70: 400 | G70: 400 | H70: 400 | I70: 1 | J70: 1 | K70: 1 | L70: 1
A71: B | B71: Shift 1 | C71: A Smith | D71: Popular Club | E71: 55 | F71: 50 | G71: 52 | H71: 108 | I71: 6 | J71: 1 | K71: 6 | L71: 2
A72: B | B72: Shift 1 | C72: A Smith | D72: SOVEREIGN BANK | E72: 1872 | F72: 2537 | G72: 2122 | H72: 2584 | I72: 34459 | J72: 44102 | K72: 37819 | L72: 46058
A73: B | B73: Shift 1 | C73: A Smith | D73: Sovereign Bank - Concord | E73: 492 | F73: 498 | G73: 682 | H73: 1590 | I73: 1761 | J73: 2214 | K73: 2877 | L73: 5298
A74: B | B74: Shift 1 | C74: A Smith | D74: Sovereign Bank- Indianapolis | E74: 360 | F74: 433 | G74: 378 | H74: 373 | I74: 7968 | J74: 9686 | K74: 8391 | L74: 8266
A75: B | B75: Shift 1 | C75: A Smith | D75: The Wall Street Journal Online | E75: 125 | F75: -475 | G75: -2050 | H75: 125 | I75: 1 | J75: 2 | K75: 3 | L75: 1
A76: B | B76: Shift 1 | C76: A Smith | D76: TMP Worldwide | E76: 750 | F76: 752 | G76: 750 | H76: 757 | I76: 1 | J76: 2 | K76: 1 | L76: 2
A77: B | B77: Shift 1 | C77: A Smith | D77: Vacation.com | E77: 52 | F77: 52 | G77: 52 | H77: 52 | I77: 78 | J77: 80 | K77: 5 | L77: 4
A78: B | B78: Shift 1 | C78: A Smith | D78: Vacation.com -Canada | E78: 12 | F78: 12 | G78: 12 | H78: 12 | I78: 1 | J78: 1 | K78: 1 | L78: 1
A79: B | B79: Shift 1 | C79: A Smith | D79: WebMD - PS Training | E79: 0 | F79: 0 | G79: 0 | H79: 0 | I79: 2 | J79: 0 | K79: 0 | L79: 0
A80: B | B80: Shift 1 | C80: A Smith | D80: WebMD Envoy | E80: 3 | F80: 4 | G80: 7 | H80: 30 | I80: 19 | J80: 26 | K80: 43 | L80: 19
A81: B | B81: Shift 1 | C81: A Smith | D81: WebMD Expressbill | E81: 0 | F81: 0 | G81: 220 | H81: 0 | I81: 0 | J81: 0 | K81: 7612 | L81: 0
A82: B | B82: Shift 1 | C82: A Smith | D82: WebMD Practice Services | E82: 3 | F82: 33 | G82: 5 | H82: 133 | I82: 20 | J82: 130 | K82: 25 | L82: 66
A83: B | B83: Shift 1 | C83: A Smith | D83: WILMINGTON FINANCE INC | E83: 106 | F83: 173 | G83: 113 | H83: 119 | I83: 38 | J83: 414 | K83: 79 | L83: 99
A84: B | B84: Shift 3 | C84: Ken Barton | D84: Automated Retail Systems | E84: 0 | F84: 0 | G84: 0 | H84: 1 | I84: 0 | J84: 0 | K84: 0 | L84: 1
A85: B | B85: Shift 3 | C85: Ken Barton | D85: DCI Group LLC | E85: 0 | F85: 0 | G85: 0 | H85: 0 | I85: 11 | J85: 13 | K85: 8 | L85: 2
A86: B | B86: Shift 3 | C86: Ken Barton | D86: DCI Group. LLC | E86: 0 | F86: 0 | G86: 0 | H86: 0 | I86: 0 | J86: 1 | K86: 5 | L86: 24
A87: B | B87: Shift 3 | C87: Ken Barton | D87: DK Publishing | E87: 0 | F87: 0 | G87: 0 | H87: 0 | I87: 0 | J87: 0 | K87: 0 | L87: 0
A88: B | B88: Shift 3 | C88: Ken Barton | D88: Marriott (Omaha) Worldwide Reservations | E88: 5003 | F88: 5497 | G88: 4900 | H88: 5280 | I88: 22943 | J88: 25105 | K88: 21977 | L88: 22660
A89: B | B89: Shift 3 | C89: Ken Barton | D89: CHEVY CHASE BANK - WHOLESALE | E89: 15 | F89: 17 | G89: 14 | H89: 13 | I89: 27 | J89: 25 | K89: 21 | L89: 19
A90: B | B90: Shift 3 | C90: Ken Barton | D90: Minnesota Department Of Public Safety | E90: 17 | F90: 0 | G90: 0 | H90: 0 | I90: 26 | J90: 1 | K90: 0 | L90: 2
A91: B | B91: Shift 3 | C91: Ken Barton | D91: NetBank | E91: 370 | F91: 541 | G91: 259 | H91: 468 | I91: 172 | J91: 264 | K91: 126 | L91: 182
A92: B | B92: Shift 3 | C92: Ken Barton | D92: SOVEREIGN BANK | E92: 272 | F92: 307 | G92: 296 | H92: 324 | I92: 3393 | J92: 3549 | K92: 3566 | L92: 3933
A93: B | B93: Shift 3 | C93: Ken Barton | D93: WebMD Expressbill | E93: 0 | F93: 0 | G93: 8 | H93: 0 | I93: 0 | J93: 0 | K93: 12 | L93: 0
A94: B | B94: Shift 3 | C94: Ken Barton | D94: WebMD Practice Services | E94: 3 | F94: 3 | G94: 0 | H94: 1 | I94: 8 | J94: 6 | K94: 0 | L94: 4
A95: B | B95: Shift 3 | C95: Ken Barton | D95: WILMINGTON FINANCE INC | E95: 0 | F95: 1 | G95: 0 | H95: 0 | I95: 0 | J95: 11 | K95: 0 | L95: 0
A96: B | B96: Shift 2 | C96: Ken Barton | D96: Automated Retail Systems | E96: 0 | F96: 2 | G96: 0 | H96: 0 | I96: 3 | J96: 11 | K96: 0 | L96: 0
A97: B | B97: Shift 2 | C97: Ken Barton | D97: CSC Publishing | E97: 1575 | F97: 2042 | G97: 0 | H97: 0 | I97: 10927 | J97: 12113 | K97: 0 | L97: 0
A98: B | B98: Shift 2 | C98: Ken Barton | D98: DCI Group LLC | E98: 0 | F98: 0 | G98: 0 | H98: 0 | I98: 9225 | J98: 19819 | K98: 7839 | L98: 19368
A99: B | B99: Shift 2 | C99: Ken Barton | D99: DCI Group. LLC | E99: 0 | F99: 0 | G99: 0 | H99: 0 | I99: 0 | J99: 200 | K99: 2064 | L99: 5032
A100: B | B100: Shift 2 | C100: Ken Barton | D100: DK Publishing | E100: 0 | F100: 0 | G100: 0 | H100: 0 | I100: 0 | J100: 2 | K100: 0 | L100: 0
A101: B | B101: Shift 2 | C101: Ken Barton | D101: Health Sciences Association | E101: 310 | F101: 116 | G101: 0 | H101: 0 | I101: 703 | J101: 367 | K101: 0 | L101: 0
A102: B | B102: Shift 2 | C102: Ken Barton | D102: Intl Strategy & Investment Group Inc | E102: 0 | F102: 0 | G102: 0 | H102: 0 | I102: 18181 | J102: 22278 | K102: 20708 | L102: 20831
A103: B | B103: Shift 2 | C103: Ken Barton | D103: Labor Ready | E103: 0 | F103: 0 | G103: 0 | H103: 2 | I103: 0 | J103: 0 | K103: 0 | L103: 3
A104: B | B104: Shift 2 | C104: Ken Barton | D104: Reno Associates Inc | E104: 0 | F104: 0 | G104: 0 | H104: 0 | I104: 0 | J104: 0 | K104: 0 | L104: 0
A105: B | B105: Shift 2 | C105: Ken Barton | D105: Allianz Global Investors | E105: 265 | F105: 181 | G105: 316 | H105: 238 | I105: 492 | J105: 233 | K105: 1016 | L105: 1257
A106: B | B106: Shift 2 | C106: Ken Barton | D106: BZ Media - Software Development Times | E106: 0 | F106: 0 | G106: 0 | H106: 0 | I106: 0 | J106: 0 | K106: 0 | L106: 0
A107: B | B107: Shift 2 | C107: Ken Barton | D107: CHEVY CHASE BANK - WHOLESALE | E107: 11916 | F107: 15416 | G107: 11702 | H107: 12283 | I107: 35818 | J107: 40035 | K107: 31186 | L107: 37147
A108: B | B108: Shift 2 | C108: Ken Barton | D108: EquiFirst | E108: 462 | F108: 632 | G108: 599 | H108: 1597 | I108: 2198 | J108: 3004 | K108: 2848 | L108: 7591
A109: B | B109: Shift 2 | C109: Ken Barton | D109: Minnesota Department Of Public Safety | E109: 1704 | F109: 3807 | G109: 4429 | H109: 3386 | I109: 9777 | J109: 29832 | K109: 29548 | L109: 23132
A110: B | B110: Shift 2 | C110: Ken Barton | D110: NetBank | E110: 8745 | F110: 10888 | G110: 6997 | H110: 4549 | I110: 37880 | J110: 37950 | K110: 29453 | L110: 21295
A111: B | B111: Shift 2 | C111: Ken Barton | D111: SOVEREIGN BANK | E111: 2643 | F111: 3856 | G111: 3245 | H111: 3758 | I111: 13011 | J111: 18010 | K111: 14140 | L111: 16945
A112: B | B112: Shift 2 | C112: Ken Barton | D112: Sovereign Bank - Concord | E112: 80 | F112: 93 | G112: 83 | H112: 96 | I112: 513 | J112: 585 | K112: 512 | L112: 567
A113: B | B113: Shift 2 | C113: Ken Barton | D113: Sovereign Bank- Indianapolis | E113: 902 | F113: 950 | G113: 765 | H113: 1178 | I113: 5491 | J113: 6346 | K113: 5935 | L113: 5977
A114: B | B114: Shift 2 | C114: Ken Barton | D114: Vacation.com | E114: 11798 | F114: 11815 | G114: 280 | H114: 0 | I114: 171334 | J114: 164939 | K114: 2699 | L114: 0
A115: B | B115: Shift 2 | C115: Ken Barton | D115: WebMD Envoy | E115: 149 | F115: 578 | G115: 158 | H115: 47 | I115: 2311 | J115: 8096 | K115: 2329 | L115: 753
A116: B | B116: Shift 2 | C116: Ken Barton | D116: WebMD Expressbill | E116: 0 | F116: 0 | G116: 894 | H116: 0 | I116: 0 | J116: 0 | K116: 3560 | L116: 0
A117: B | B117: Shift 2 | C117: Ken Barton | D117: WebMD Practice Services | E117: 287 | F117: 3378 | G117: 354 | H117: 2626 | I117: 2408 | J117: 25056 | K117: 2714 | L117: 16131
A118: B | B118: Shift 2 | C118: Ken Barton | D118: WILMINGTON FINANCE INC | E118: 447 | F118: 8589 | G118: 1531 | H118: 2423 | I118: 6386 | J118: 124207 | K118: 21865 | L118: 34615
A119: B | B119: Shift 4 | C119: Ken Barton | D119: 1st Mariner Mortgage | E119: 449 | F119: 601 | G119: 527 | H119: 448 | I119: 93701 | J119: 123396 | K119: 113006 | L119: 91957
A120: B | B120: Shift 4 | C120: Ken Barton | D120: Altium Limited | E120: 0 | F120: 0 | G120: 0 | H120: 0 | I120: 69 | J120: 0 | K120: 0 | L120: 0
A121: B | B121: Shift 4 | C121: Ken Barton | D121: AMERICAN HOSPITAL ASSOCIATION | E121: 1243 | F121: 1446 | G121: 1003 | H121: 981 | I121: 15269 | J121: 48893 | K121: 18208 | L121: 14488
A122: B | B122: Shift 4 | C122: Ken Barton | D122: American Red Cross Palmetto Chapter | E122: 0 | F122: 0 | G122: 48 | H122: 67 | I122: 0 | J122: 0 | K122: 805 | L122: 1761
A123: B | B123: Shift 4 | C123: Ken Barton | D123: Amphenol Assemble Tech | E123: 259 | F123: 0 | G123: 0 | H123: 0 | I123: 5180 | J123: 0 | K123: 0 | L123: 0
A124: B | B124: Shift 4 | C124: Ken Barton | D124: ARTA | E124: 20 | F124: 58 | G124: 92 | H124: 0 | I124: 398 | J124: 1168 | K124: 824 | L124: 0
A125: B | B125: Shift 4 | C125: Ken Barton | D125: Ascend Media | E125: 0 | F125: 0 | G125: 0 | H125: 0 | I125: 0 | J125: 0 | K125: 0 | L125: 3
A126: B | B126: Shift 4 | C126: Ken Barton | D126: Barcharts Inc | E126: 0 | F126: 0 | G126: 0 | H126: 0 | I126: 0 | J126: 2 | K126: 95 | L126: 198
A127: B | B127: Shift 4 | C127: Ken Barton | D127: Chase Manhattan Mortgage Corp | E127: 0 | F127: 0 | G127: 0 | H127: 0 | I127: 0 | J127: 2 | K127: 2 | L127: 0
A128: B | B128: Shift 4 | C128: Ken Barton | D128: Chase Subprime Lending | E128: 1091 | F128: 1700 | G128: 977 | H128: 1023 | I128: 157924 | J128: 205828 | K128: 211089 | L128: 129668
A129: B | B129: Shift 4 | C129: Ken Barton | D129: Connecter Supplier.Com | E129: 0 | F129: 0 | G129: 0 | H129: 0 | I129: 2734 | J129: 0 | K129: 0 | L129: 0
A130: B | B130: Shift 4 | C130: Ken Barton | D130: Direct Medical Data | E130: 7291 | F130: 5876 | G130: 8824 | H130: 7138 | I130: 367102 | J130: 302304 | K130: 475285 | L130: 508977
A131: B | B131: Shift 4 | C131: Ken Barton | D131: Dow Jones & Company | E131: 339 | F131: 2346 | G131: 122 | H131: 162 | I131: 34839 | J131: 235541 | K131: 12158 | L131: 16203
A132: B | B132: Shift 4 | C132: Ken Barton | D132: Encore Credit Corporation | E132: 1888 | F132: 31 | G132: 7 | H132: 177 | I132: 112494 | J132: 35193 | K132: 340 | L132: 17622
A133: B | B133: Shift 4 | C133: Ken Barton | D133: FHSSA | E133: 0 | F133: 26 | G133: 0 | H133: 0 | I133: 0 | J133: 521 | K133: 0 | L133: 0
A134: B | B134: Shift 4 | C134: Ken Barton | D134: Floridians for Youth Tobacco Education | E134: 0 | F134: 0 | G134: 0 | H134: 0 | I134: 0 | J134: 0 | K134: 3 | L134: 0
A135: B | B135: Shift 4 | C135: Ken Barton | D135: GS1US-EPC Global US | E135: 16 | F135: 12 | G135: 50 | H135: 16 | I135: 1632 | J135: 1225 | K135: 18722 | L135: 10430
A136: B | B136: Shift 4 | C136: Ken Barton | D136: Home Health Products | E136: 183 | F136: 320 | G136: 77 | H136: 220 | I136: 6530 | J136: 11052 | K136: 3207 | L136: 18559
A137: B | B137: Shift 4 | C137: Ken Barton | D137: IN DEMAND AFFILIATE RELATIONS | E137: 967 | F137: 1346 | G137: 2421 | H137: 210 | I137: 10749 | J137: 16988 | K137: 26951 | L137: 2102
A138: B | B138: Shift 4 | C138: Ken Barton | D138: InsWeb | E138: 8639 | F138: 8996 | G138: 9319 | H138: 19049 | I138: 2901461 | J138: 3013491 | K138: 3126420 | L138: 6370904
A139: B | B139: Shift 4 | C139: Ken Barton | D139: INTERBAY FUNDING | E139: 204 | F139: 194 | G139: 119 | H139: 183 | I139: 26727 | J139: 29404 | K139: 16704 | L139: 25025
A140: B | B140: Shift 4 | C140: Ken Barton | D140: Interbay Funding - Mercury | E140: 0 | F140: 2 | G140: 12 | H140: 6 | I140: 0 | J140: 206 | K140: 2038 | L140: 2874
A141: B | B141: Shift 4 | C141: Ken Barton | D141: LeCroy | E141: 261 | F141: 0 | G141: 0 | H141: 0 | I141: 10451 | J141: 0 | K141: 0 | L141: 0
A142: B | B142: Shift 4 | C142: Ken Barton | D142: Meriton Networks Inc | E142: 0 | F142: 96 | G142: 0 | H142: 0 | I142: 0 | J142: 2226 | K142: 0 | L142: 0
A143: B | B143: Shift 4 | C143: Ken Barton | D143: Mobility Management | E143: 33 | F143: 126 | G143: 204 | H143: 64 | I143: 1559 | J143: 4747 | K143: 11732 | L143: 8886
A144: B | B144: Shift 4 | C144: Ken Barton | D144: Mosaic Foundation | E144: 0 | F144: 0 | G144: 8 | H144: 0 | I144: 0 | J144: 0 | K144: 137 | L144: 0
A145: B | B145: Shift 4 | C145: Ken Barton | D145: Nastel Technologies | E145: 4 | F145: 327 | G145: 0 | H145: 0 | I145: 5012 | J145: 8383 | K145: 10175 | L145: 52
A146: B | B146: Shift 4 | C146: Ken Barton | D146: National Life | E146: 322 | F146: 317 | G146: 2299 | H146: 961 | I146: 3103 | J146: 3412 | K146: 24103 | L146: 11545
A147: B | B147: Shift 4 | C147: Ken Barton | D147: National Write Your Congressman | E147: 127 | F147: 287 | G147: 143 | H147: 356 | I147: 6669 | J147: 15484 | K147: 7708 | L147: 19704
A148: B | B148: Shift 4 | C148: Ken Barton | D148: NEW WORLD COMMERCIAL LENDER | E148: 20 | F148: 0 | G148: 0 | H148: 0 | I148: 1031 | J148: 342 | K148: 0 | L148: 0
A149: B | B149: Shift 4 | C149: Ken Barton | D149: NHF | E149: 23 | F149: 84 | G149: 21 | H149: 0 | I149: 462 | J149: 1678 | K149: 415 | L149: 0
A150: B | B150: Shift 4 | C150: Ken Barton | D150: Opteum Financial Services. | E150: 6823 | F150: 3955 | G150: 1099 | H150: 0 | I150: 393705 | J150: 279503 | K150: 141284 | L150: 15131
A151: B | B151: Shift 4 | C151: Ken Barton | D151: PacifiCare Desert Region | E151: 720 | F151: 897 | G151: 971 | H151: 1300 | I151: 8743 | J151: 31204 | K151: 19715 | L151: 56083
A152: B | B152: Shift 4 | C152: Ken Barton | D152: Paulin Research Group | E152: 57 | F152: 364 | G152: 0 | H152: 0 | I152: 520 | J152: 1124 | K152: 7 | L152: 0
A153: B | B153: Shift 4 | C153: Ken Barton | D153: Polar Instruments LTD | E153: 523 | F153: 0 | G153: 0 | H153: 0 | I153: 10461 | J153: 0 | K153: 0 | L153: 0
A154: B | B154: Shift 4 | C154: Ken Barton | D154: Poseidon Design Systems | E154: 259 | F154: 0 | G154: 0 | H154: 0 | I154: 7712 | J154: 0 | K154: 0 | L154: 0
A155: B | B155: Shift 4 | C155: Ken Barton | D155: Quality Home Loans | E155: 0 | F155: 223 | G155: 20 | H155: 0 | I155: 11 | J155: 21214 | K155: 3904 | L155: 13
A156: B | B156: Shift 4 | C156: Ken Barton | D156: Redbacks Network | E156: 0 | F156: 0 | G156: 0 | H156: 180 | I156: 0 | J156: 0 | K156: 0 | L156: 14445
A157: B | B157: Shift 4 | C157: Ken Barton | D157: RigData, a Division of Datawright Corp. | E157: 0 | F157: 330 | G157: 463 | H157: -153 | I157: 0 | J157: 31094 | K157: 46200 | L157: 18884
A158: B | B158: Shift 4 | C158: Ken Barton | D158: Staton Wholesale | E158: 2614 | F158: 3220 | G158: 290 | H158: 0 | I158: 320914 | J158: 431925 | K158: 162334 | L158: 124423
A159: B | B159: Shift 4 | C159: Ken Barton | D159: Tandberg Televison Limited | E159: 0 | F159: 0 | G159: 0 | H159: 189 | I159: 0 | J159: 0 | K159: 0 | L159: 11592
A160: B | B160: Shift 4 | C160: Ken Barton | D160: The Reeher Group | E160: 0 | F160: 0 | G160: 524 | H160: 0 | I160: 0 | J160: 30 | K160: 35231 | L160: 65204
A161: B | B161: Shift 4 | C161: Ken Barton | D161: Triangle Resource Grp Inc DBA Saf-T-Net | E161: 0 | F161: 0 | G161: 0 | H161: 41 | I161: 3 | J161: 0 | K161: 0 | L161: 594
A162: B | B162: Shift 4 | C162: Ken Barton | D162: Union Federal Saving Bank | E162: 0 | F162: 14 | G162: 36 | H162: 193 | I162: 0 | J162: 225 | K162: 3234 | L162: 9767
A163: B | B163: Shift 4 | C163: Ken Barton | D163: Utah Symphony & Opera | E163: 606 | F163: 1808 | G163: 1484 | H163: 1338 | I163: 41811 | J163: 102796 | K163: 81885 | L163: 74353
A164: B | B164: Shift 4 | C164: Ken Barton | D164: Widmeyer Communications | E164: 772 | F164: 434 | G164: 319 | H164: 538 | I164: 24606 | J164: 8473 | K164: 7317 | L164: 13312
A165: B | B165: Shift 5 | C165: Ken Barton | D165: American Red Cross-Metro Atlanta Chapter | E165: 232 | F165: 0 | G165: 332 | H165: 276 | I165: 948 | J165: 0 | K165: 1392 | L165: 1364
A166: B | B166: Shift 5 | C166: Ken Barton | D166: Credit Suisse First Boston | E166: 289 | F166: 185 | G166: 220 | H166: 277 | I166: 410 | J166: 268 | K166: 237 | L166: 355
A167: B | B167: Shift 5 | C167: Ken Barton | D167: Cuna Mutual Insurance | E167: 792 | F167: 1173 | G167: 919 | H167: 1126 | I167: 3802 | J167: 5836 | K167: 5179 | L167: 5435
A168: B | B168: Shift 5 | C168: Ken Barton | D168: Encore Credit Corporation | E168: 16 | F168: 13 | G168: 19 | H168: 96 | I168: 166 | J168: 82 | K168: 143 | L168: 618
A169: B | B169: Shift 5 | C169: Ken Barton | D169: Harris Nesbitt | E169: 3356 | F169: 1237 | G169: 2848 | H169: 2154 | I169: 4359 | J169: 1986 | K169: 4798 | L169: 2652
A170: B | B170: Shift 5 | C170: Ken Barton | D170: JC Morgan & Associates | E170: 111 | F170: 228 | G170: -276 | H170: 9 | I170: 1401 | J170: 2064 | K170: 149 | L170: 90
A171: B | B171: Shift 5 | C171: Ken Barton | D171: Knoxville Chamber of Commerce | E171: 0 | F171: 57 | G171: 0 | H171: 0 | I171: 0 | J171: 723 | K171: 0 | L171: 0
A172: B | B172: Shift 5 | C172: Ken Barton | D172: Language Line Services | E172: 11 | F172: 0 | G172: 0 | H172: 1 | I172: 70 | J172: 0 | K172: 0 | L172: 15
A173: B | B173: Shift 5 | C173: Ken Barton | D173: Listenation | E173: 0 | F173: 0 | G173: 15 | H173: 199 | I173: 0 | J173: 0 | K173: 22 | L173: 363
A174: B | B174: Shift 5 | C174: Ken Barton | D174: Millburn Com Consolidated School Dist 24 | E174: 90 | F174: 0 | G174: 0 | H174: 47 | I174: 905 | J174: 0 | K174: 0 | L174: 989
A175: B | B175: Shift 5 | C175: Ken Barton | D175: Peapod | E175: 934 | F175: 111 | G175: 526 | H175: 446 | I175: 3041 | J175: 315 | K175: 1597 | L175: 1401
A176: B | B176: Shift 5 | C176: Ken Barton | D176: Philadephia Eagles | E176: 0 | F176: 25 | G176: 0 | H176: 0 | I176: 0 | J176: 157 | K176: 0 | L176: 0
A177: B | B177: Shift 5 | C177: Ken Barton | D177: PME Enterprises LLC | E177: 0 | F177: 569 | G177: 0 | H177: 0 | I177: 0 | J177: 3023 | K177: 0 | L177: 0
A178: B | B178: Shift 5 | C178: Ken Barton | D178: Scripps Network | E178: 0 | F178: 0 | G178: 0 | H178: 39 | I178: 0 | J178: 0 | K178: 0 | L178: 132
A179: B | B179: Shift 5 | C179: Ken Barton | D179: TalentTrack | E179: 0 | F179: 0 | G179: 0 | H179: 888 | I179: 0 | J179: 0 | K179: 0 | L179: 9600
A180: B | B180: Shift 5 | C180: Ken Barton | D180: Triangle Resource Grp Inc DBA Saf-T-Net | E180: 17155 | F180: 30058 | G180: 21154 | H180: 25888 | I180: 384771 | J180: 564440 | K180: 372007 | L180: 454784
A181: B | B181: Shift 5 | C181: Ken Barton | D181: True Value Company | E181: 9 | F181: 0 | G181: 0 | H181: 0 | I181: 218 | J181: 0 | K181: 0 | L181: 0
A182: B | B182: Shift 5 | C182: Ken Barton | D182: Willis Music Group | E182: 0 | F182: 0 | G182: 488 | H182: 0 | I182: 0 | J182: 0 | K182: 4337 | L182: 0
A183: B | B183: Shift 5 | C183: Ken Barton | D183: Your Courthouse Team | E183: 0 | F183: 0 | G183: 0 | H183: 229 | I183: 0 | J183: 0 | K183: 0 | L183: 1129
A184: B | B184: Shift 1 | C184: Ken Barton | D184: 1st Mariner Mortgage | E184: 3 | F184: 4 | G184: 3 | H184: 3 | I184: 21 | J184: 28 | K184: 23 | L184: 25
A185: B | B185: Shift 1 | C185: Ken Barton | D185: Aames Home Loan | E185: 0 | F185: 0 | G185: 0 | H185: 0 | I185: 2 | J185: 0 | K185: 0 | L185: 0
A186: B | B186: Shift 1 | C186: Ken Barton | D186: Advanstar Communications | E186: 23 | F186: 34 | G186: 62 | H186: 46 | I186: 12 | J186: 19 | K186: 31 | L186: 17
A187: B | B187: Shift 1 | C187: Ken Barton | D187: Advocacy Consulting | E187: 61 | F187: 0 | G187: 0 | H187: 0 | I187: 2 | J187: 0 | K187: 0 | L187: 0
A188: B | B188: Shift 1 | C188: Ken Barton | D188: AIPAC | E188: 110 | F188: 107 | G188: 81 | H188: 104 | I188: 94 | J188: 89 | K188: 62 | L188: 86
A189: B | B189: Shift 1 | C189: Ken Barton | D189: Altium Limited | E189: 75 | F189: 0 | G189: 0 | H189: 0 | I189: 1 | J189: 0 | K189: 0 | L189: 0
A190: B | B190: Shift 1 | C190: Ken Barton | D190: American Bar Association | E190: 1 | F190: 0 | G190: 0 | H190: 0 | I190: 6 | J190: 3 | K190: 0 | L190: 0
A191: B | B191: Shift 1 | C191: Ken Barton | D191: AMERICAN HOSPITAL ASSOCIATION | E191: 475 | F191: 906 | G191: 50 | H191: 26 | I191: 716 | J191: 3072 | K191: 105 | L191: 74
A192: B | B192: Shift 1 | C192: Ken Barton | D192: American Red Cross Indiana-Ohio Region | E192: 34 | F192: 13 | G192: 34 | H192: 11 | I192: 50 | J192: 53 | K192: 48 | L192: 73
A193: B | B193: Shift 1 | C193: Ken Barton | D193: American Red Cross Palmetto Chapter | E193: 0 | F193: 0 | G193: 0 | H193: 8 | I193: 0 | J193: 0 | K193: 0 | L193: 1
A194: B | B194: Shift 1 | C194: Ken Barton | D194: American Red Cross-Metro Atlanta Chapter | E194: 12 | F194: 100 | G194: 2 | H194: 2 | I194: 15 | J194: 1 | K194: 3 | L194: 3
A195: B | B195: Shift 1 | C195: Ken Barton | D195: American Trial Lawyer Association | E195: 110 | F195: 2634 | G195: 1038 | H195: 4209 | I195: 293 | J195: 205 | K195: 208 | L195: 166
A196: B | B196: Shift 1 | C196: Ken Barton | D196: Antares Information Technologies, Inc | E196: 75 | F196: 75 | G196: 75 | H196: 5677 | I196: 17 | J196: 15 | K196: 5 | L196: 11
A197: B | B197: Shift 1 | C197: Ken Barton | D197: Ariba | E197: 102 | F197: 103 | G197: 93 | H197: 93 | I197: 74 | J197: 106 | K197: 147 | L197: 130
A198: B | B198: Shift 1 | C198: Ken Barton | D198: ARTA | E198: 55 | F198: -38 | G198: 0 | H198: 0 | I198: 1 | J198: 2 | K198: 0 | L198: 0
A199: B | B199: Shift 1 | C199: Ken Barton | D199: Asurion Insurance Services, Inc. | E199: 5475 | F199: 1149 | G199: 3311 | H199: 6099 | I199: 1 | J199: 273 | K199: 13820 | L199: 25835
A200: B | B200: Shift 1 | C200: Ken Barton | D200: Banner Good Samaritan Medical Center | E200: 75 | F200: 76 | G200: 1 | H200: 75 | I200: 2 | J200: 3 | K200: 2 | L200: 3
... 4300 more rows
